Body,Body Name,Date,Transaction Number,Invoice Number,Amount,Supplier Name,Supplier ID ,VAT Registration Number ,Expense Area,Expense Type,Expense Code,Purchase Order
http://statistics.data.gov.uk/id/local-authority/29UP,Tonbridge & Malling Borough Council,4/3/2023,0041035400/1,41035400, 15.00,BNP Paribas,01360500,,Bank Charges,Banking Arrangements,D43QK000044222,
http://statistics.data.gov.uk/id/local-authority/29UP,Tonbridge & Malling Borough Council,4/4/2023,0041035401/1,41035401, 15.00,BNP Paribas,01360500,,Bank Charges,Banking Arrangements,D43QK000044222,
http://statistics.data.gov.uk/id/local-authority/29UP,Tonbridge & Malling Borough Council,4/5/2023,0041035404/1,41035404, 15.00,BNP Paribas,01360500,,Bank Charges,Banking Arrangements,D43QK000044222,
http://statistics.data.gov.uk/id/local-authority/29UP,Tonbridge & Malling Borough Council,4/6/2023,0041035411/1,41035411, 15.00,HSBC Bank Plc,01740800,,Bank Charges,Banking Arrangements,D43QK000044222,
http://statistics.data.gov.uk/id/local-authority/29UP,Tonbridge & Malling Borough Council,4/6/2023,0041035412/1,41035412, 15.20,HSBC Bank Plc,01740800,,Bank Charges,Banking Arrangements,D43QK000044222,
http://statistics.data.gov.uk/id/local-authority/29UP,Tonbridge & Malling Borough Council,4/11/2023,0041035416/1,41035416, 15.00,BNP Paribas,01360500,,Bank Charges,Banking Arrangements,D43QK000044222,
http://statistics.data.gov.uk/id/local-authority/29UP,Tonbridge & Malling Borough Council,4/12/2023,0011045913/1,11045913, 4500.00,Sevenoaks District Council,00089300,,Initiatives,UK Shared Prosperity Fund,D52TH000048135,
http://statistics.data.gov.uk/id/local-authority/29UP,Tonbridge & Malling Borough Council,4/12/2023,0011045914/3,11045914, 151.00,Spy Alarms Ltd,01608800,,BRREP Servicing-IntruderAlarm,Leybourne Lakes Country Park,M15HLP20001939,
http://statistics.data.gov.uk/id/local-authority/29UP,Tonbridge & Malling Borough Council,4/12/2023,0011045915/3,11045915, 300.00,Antalis,01556800,317187204,Purchases - Paper,Printing,D22GA000040102,
http://statistics.data.gov.uk/id/local-authority/29UP,Tonbridge & Malling Borough Council,4/12/2023,0011045916/3,11045916, 1845.38,South East England Councils (SEEC),01304900,,Subscriptions,Committee Administration,D29LL000047002,
http://statistics.data.gov.uk/id/local-authority/29UP,Tonbridge & Malling Borough Council,4/12/2023,0011045917/3,11045917, 646.40,Chubb Fire & Security Ltd,00115400,174605362,BRREP Servicing-IntruderAlarm,Tonbridge Swimming Pool,M15HBP20001939,
http://statistics.data.gov.uk/id/local-authority/29UP,Tonbridge & Malling Borough Council,4/12/2023,0011045918/3,11045918, 71218.99,SAS Energy,01856200,,Contract Payments,LLC Photovoltaic System,P05LR000009904,
http://statistics.data.gov.uk/id/local-authority/29UP,Tonbridge & Malling Borough Council,4/12/2023,0011045919/1,11045919, 27.80,KCS - KCC,00054200,,Stationery,Admin & Prop Sals&Overheads,D01AA000043003,110070141
http://statistics.data.gov.uk/id/local-authority/29UP,Tonbridge & Malling Borough Council,4/12/2023,0011045920/1,11045920, 128.40,Hadene Engineering Ltd,00041900,,Other Expenses,Homeless Accommodation,P03AX000009908,110070135
http://statistics.data.gov.uk/id/local-authority/29UP,Tonbridge & Malling Borough Council,4/12/2023,0011045921/1,11045921, 377.00,Chillmech Limited,00978700,,BRREP Servicing - air handling,Tonbridge Castle / CAB,M15KFP20001936,110070126
http://statistics.data.gov.uk/id/local-authority/29UP,Tonbridge & Malling Borough Council,4/12/2023,0011045922/1,11045922, 354.00,NKM Fire Protection Ltd,01784600,,BRREP Servicing - FireAlarmSys,Tonbridge Swimming Pool,M15HBP20001937,110070140
http://statistics.data.gov.uk/id/local-authority/29UP,Tonbridge & Malling Borough Council,4/12/2023,0011045923/1,11045923, 90.00,Lemon Drainage Services LTD,01761600,,Sewerage Charges,Haysden Country Park,B22LC000024003,110069460
http://statistics.data.gov.uk/id/local-authority/29UP,Tonbridge & Malling Borough Council,4/12/2023,0011045924/1,11045924, 198.00,NKM Fire Protection Ltd,01784600,,BRREP Servicing - FireAlarmSys,Tonbridge Swimming Pool,M15HBP20001937,110070139
http://statistics.data.gov.uk/id/local-authority/29UP,Tonbridge & Malling Borough Council,4/12/2023,0011045925/1,11045925, 222.50,Chillmech Limited,00978700,,BRREP Servicing - air handling,Gibson Building East,M15KGP20001936,110070102
http://statistics.data.gov.uk/id/local-authority/29UP,Tonbridge & Malling Borough Council,4/12/2023,0011045926/1,11045926, 450.00,BML Building Services Ltd,01505000,,BRREP Response - General,Larkfield Leisure Centre,M15HDP50001997,110070057
http://statistics.data.gov.uk/id/local-authority/29UP,Tonbridge & Malling Borough Council,4/12/2023,0011045927/1,11045927, 100.00,BML Building Services Ltd,01505000,,BRREP Window/door repairs,Larkfield Leisure Centre,M15HDP20001919,110070118
http://statistics.data.gov.uk/id/local-authority/29UP,Tonbridge & Malling Borough Council,4/12/2023,0011045928/1,11045928, 150.00,BML Building Services Ltd,01505000,,BRREP Response - General,Larkfield Leisure Centre,M15HDP50001997,110070119
http://statistics.data.gov.uk/id/local-authority/29UP,Tonbridge & Malling Borough Council,4/12/2023,0011045929/1,11045929, 150.00,BML Building Services Ltd,01505000,,BRREP Window/door repairs,Larkfield Leisure Centre,M15HDP20001919,110070128
http://statistics.data.gov.uk/id/local-authority/29UP,Tonbridge & Malling Borough Council,4/12/2023,0011045930/1,11045930, 50.00,BML Building Services Ltd,01505000,,Repairs & Mtce to Buildings,Homelessness,C01AATNHS20101,110070114
http://statistics.data.gov.uk/id/local-authority/29UP,Tonbridge & Malling Borough Council,4/12/2023,0011045931/1,11045931, 825.00,BML Building Services Ltd,01505000,,BRREP Window/door repairs,PC - General,M15JAP20001919,110070046
http://statistics.data.gov.uk/id/local-authority/29UP,Tonbridge & Malling Borough Council,4/12/2023,0011045933/1,11045933, 32.00,Learnd UK,01226700,,BRREP Servicing - pool plant,Larkfield Leisure Centre,M15HDP20001910,110070088
http://statistics.data.gov.uk/id/local-authority/29UP,Tonbridge & Malling Borough Council,4/12/2023,0011045934/1,11045934, 690.00,TMD Services,01719600,,BRREP Slipstream flume ovrhaul,Larkfield Leisure Centre,M15HDP20001954,110069823
http://statistics.data.gov.uk/id/local-authority/29UP,Tonbridge & Malling Borough Council,4/12/2023,0011045935/1,11045935, 2115.00,Coolburn Air Conditioning Ltd,01137900,,BRREP Servicing - air handling,Larkfield Leisure Centre,M15HDP20001936,110070028
http://statistics.data.gov.uk/id/local-authority/29UP,Tonbridge & Malling Borough Council,4/12/2023,0012008678/1,12008678, 411.00,Zoho Corporation Limited,01892700,,Software Hire & Support,Information Technology,D27KD000044059,410032371
http://statistics.data.gov.uk/id/local-authority/29UP,Tonbridge & Malling Borough Council,4/12/2023,0012008679/1,12008679, 59.97,CCS Media Ltd,00018000,,Purchases,Information Technology,D27KD000040101,410032375
http://statistics.data.gov.uk/id/local-authority/29UP,Tonbridge & Malling Borough Council,4/12/2023,0012008680/1,12008680, 69.45,CCS Media Ltd,00018000,,Purchases,Information Technology,D27KD000040101,410032375
http://statistics.data.gov.uk/id/local-authority/29UP,Tonbridge & Malling Borough Council,4/12/2023,0012008680/2,12008680, 3.00,CCS Media Ltd,00018000,,Delivery Expenses,Information Technology,D27KD000044069,410032375
http://statistics.data.gov.uk/id/local-authority/29UP,Tonbridge & Malling Borough Council,4/12/2023,0012008681/3,12008681, 15.88,Esendex Limited,01008900,,Leased Lines & Modems,Information Technology,D27KD000045011,
http://statistics.data.gov.uk/id/local-authority/29UP,Tonbridge & Malling Borough Council,4/12/2023,0012008682/1,12008682, 7259.86,Dataquest Ltd - CC Engineering Limited,01233100,438498209,Maintenance - Ancillary Equip,Information Technology,D27KD000040137,110070123
http://statistics.data.gov.uk/id/local-authority/29UP,Tonbridge & Malling Borough Council,4/12/2023,0012008683/1,12008683, 84805.45,Idox Software Ltd,00962400,,Software Hire & Support,Information Technology,D27KD000044059,110070124
http://statistics.data.gov.uk/id/local-authority/29UP,Tonbridge & Malling Borough Council,4/12/2023,0012008684/1,12008684, 816.75,Canon (UK) Limited,00298700,,Software Hire & Support,Information Technology,D27KD000044059,
http://statistics.data.gov.uk/id/local-authority/29UP,Tonbridge & Malling Borough Council,4/12/2023,0012008685/1,12008685, 750.00,Canon (UK) Limited,00298700,,Maintenance - Ancillary Equip,Information Technology,D27KD000040137,
http://statistics.data.gov.uk/id/local-authority/29UP,Tonbridge & Malling Borough Council,4/12/2023,0012008685/2,12008685, 138.00,Canon (UK) Limited,00298700,,Maintenance - Ancillary Equip,Information Technology,D27KD000040137,
http://statistics.data.gov.uk/id/local-authority/29UP,Tonbridge & Malling Borough Council,4/12/2023,0012008686/1,12008686, 8.51,Daisy Communications,01068100,,Telephones - Rentals,General Admin Telephones,D24GT000045005,
http://statistics.data.gov.uk/id/local-authority/29UP,Tonbridge & Malling Borough Council,4/12/2023,0012008686/2,12008686, 285.76,Daisy Communications,01068100,,Telephones - Call Costs,General Admin Telephones,D24GT000045006,
http://statistics.data.gov.uk/id/local-authority/29UP,Tonbridge & Malling Borough Council,4/12/2023,0012008686/3,12008686, 95.92,Daisy Communications,01068100,,Leased Lines & Modems,Information Technology,D27KD000045011,
http://statistics.data.gov.uk/id/local-authority/29UP,Tonbridge & Malling Borough Council,4/12/2023,0012008686/4,12008686, 74.46,Daisy Communications,01068100,,Maintenance - General,Security Services Management,E09GA000040135,
http://statistics.data.gov.uk/id/local-authority/29UP,Tonbridge & Malling Borough Council,4/12/2023,0012008687/1,12008687, 401.83,Trustmarque Solutions Ltd,01673200,,Software Hire & Support,Information Technology,D27KD000044059,
http://statistics.data.gov.uk/id/local-authority/29UP,Tonbridge & Malling Borough Council,4/12/2023,0021038501/3,21038501, 579.94,JB Commercial Furniture,01333200,,Initial Furniture & Equipment,Capital Renewals Leisure,P05KGBC0209906,
http://statistics.data.gov.uk/id/local-authority/29UP,Tonbridge & Malling Borough Council,4/12/2023,0021038501/4,21038501, 869.94,JB Commercial Furniture,01333200,,Initial Furniture & Equipment,Capital Renewals Leisure,P05KGBC0209906,
http://statistics.data.gov.uk/id/local-authority/29UP,Tonbridge & Malling Borough Council,4/12/2023,0021038501/5,21038501, 117.90,JB Commercial Furniture,01333200,,Initial Furniture & Equipment,Capital Renewals Leisure,P05KGBC0209906,
http://statistics.data.gov.uk/id/local-authority/29UP,Tonbridge & Malling Borough Council,4/12/2023,0021038502/1,21038502, 2250.00,Robert Graham T/A Sustainable Land Manag,00040700,,Income,LLCP Facility Improv,P05FF000009907,210057168
http://statistics.data.gov.uk/id/local-authority/29UP,Tonbridge & Malling Borough Council,4/12/2023,0021038503/1,21038503, 4995.00,SWS Countryside & Landscape,01567200,,Initial Furniture & Equipment,TRSG-TSP Bridge,P05DN000009906,210057041
http://statistics.data.gov.uk/id/local-authority/29UP,Tonbridge & Malling Borough Council,4/12/2023,0021038504/3,21038504, 81.24,B&Q/Screwfix Direct(TradeUKAccount),00141300,,Purchases,Open Spaces & Amenity Areas,B22LE000040101,
http://statistics.data.gov.uk/id/local-authority/29UP,Tonbridge & Malling Borough Council,4/12/2023,0021038506/3,21038506, 37.04,B&Q/Screwfix Direct(TradeUKAccount),00141300,,Purchases,Open Spaces & Amenity Areas,B22LE000040101,
http://statistics.data.gov.uk/id/local-authority/29UP,Tonbridge & Malling Borough Council,4/12/2023,0021038506/4,21038506, 64.99,B&Q/Screwfix Direct(TradeUKAccount),00141300,,Purchases,Open Spaces & Amenity Areas,B22LE000040101,
http://statistics.data.gov.uk/id/local-authority/29UP,Tonbridge & Malling Borough Council,4/12/2023,0021038507/1,21038507, 140.00,Mr Mark Williams,01184500,,Marketing,Events Development,B41TJZ99944215,210057150
http://statistics.data.gov.uk/id/local-authority/29UP,Tonbridge & Malling Borough Council,4/12/2023,0021038508/1,21038508, 424.00,Keep Britain Tidy,00519900,,Advertising General,Haysden Country Park,B22LC000044216,210057060
http://statistics.data.gov.uk/id/local-authority/29UP,Tonbridge & Malling Borough Council,4/12/2023,0021038509/1,21038509, 70.50,Initial Washroom Hygiene,00048300,,Cleaning & Domestic Supplies,Haysden Country Park,B22LC000026001,
http://statistics.data.gov.uk/id/local-authority/29UP,Tonbridge & Malling Borough Council,4/12/2023,0021038510/1,21038510, 854.00,HAGS SMP Ltd,00793600,,Payment re Prev Yrs Cred Acc,Sundry Creditors SSLTS,J80TL000001101,
http://statistics.data.gov.uk/id/local-authority/29UP,Tonbridge & Malling Borough Council,4/12/2023,0021038511/1,21038511, 846.00,C&H Product Ltd,01424400,,Initial Furniture & Equipment,Capital Renewals Leisure,P05KGBC0409906,210057142
http://statistics.data.gov.uk/id/local-authority/29UP,Tonbridge & Malling Borough Council,4/12/2023,0021038511/2,21038511, 65.00,C&H Product Ltd,01424400,,Initial Furniture & Equipment,Capital Renewals Leisure,P05KGBC0409906,210057142
http://statistics.data.gov.uk/id/local-authority/29UP,Tonbridge & Malling Borough Council,4/12/2023,0021038512/1,21038512, 629.99,Cater-Kwik Ltd,01265500,,Initial Furniture & Equipment,Capital Renewals Leisure,P05KGBC0209906,210057170
http://statistics.data.gov.uk/id/local-authority/29UP,Tonbridge & Malling Borough Council,4/12/2023,0021038512/2,21038512, 629.99,Cater-Kwik Ltd,01265500,,Initial Furniture & Equipment,Capital Renewals Leisure,P05KGBC0209906,210057170
http://statistics.data.gov.uk/id/local-authority/29UP,Tonbridge & Malling Borough Council,4/12/2023,0021038513/1,21038513, 74.71,G.L. & R.G. Bourne,00737500,,Gates / Security,Haysden Country Park,B22LC000044017,210056722
http://statistics.data.gov.uk/id/local-authority/29UP,Tonbridge & Malling Borough Council,4/12/2023,0021038514/1,21038514, 544.98,G.L. & R.G. Bourne,00737500,,Payment re Prev Yrs Cred Acc,Sundry Creditors SSLTS,J80TL000001101,
http://statistics.data.gov.uk/id/local-authority/29UP,Tonbridge & Malling Borough Council,4/12/2023,0021038515/1,21038515, 324.96,Axminster Tools,01892000,,Initial Furniture & Equipment,Capital Renewals Leisure,P05KGBC0209906,210057162
http://statistics.data.gov.uk/id/local-authority/29UP,Tonbridge & Malling Borough Council,4/12/2023,0021038516/1,21038516, 4050.00,Absolute Air & Gas Limited,01886200,,Initial Furniture & Equipment,Capital Renewals Leisure,P05KGBC0309906,210057129
http://statistics.data.gov.uk/id/local-authority/29UP,Tonbridge & Malling Borough Council,4/12/2023,0021038516/2,21038516, 85.00,Absolute Air & Gas Limited,01886200,,Initial Furniture & Equipment,Capital Renewals Leisure,P05KGBC0309906,210057129
http://statistics.data.gov.uk/id/local-authority/29UP,Tonbridge & Malling Borough Council,4/12/2023,0022027423/1,22027423, 14470.00,Dolphin Stairlifts,00698900,,Other Expenses,Disabled Facilities Grant Mand,P03AC000009908,
http://statistics.data.gov.uk/id/local-authority/29UP,Tonbridge & Malling Borough Council,4/12/2023,0022027622/3,22027622, 4322.11,Ward Security LTD,01490000,,Payment re Prev Yrs Cred Acc,Sundry Creditors SSLTS,J80TL000001101,
http://statistics.data.gov.uk/id/local-authority/29UP,Tonbridge & Malling Borough Council,4/12/2023,0022027623/3,22027623, 34557.99,Urbaser LTD,01718800,,Payment re Prev Yrs Cred Acc,Sundry Creditors SSLTS,J80TL000001101,
http://statistics.data.gov.uk/id/local-authority/29UP,Tonbridge & Malling Borough Council,4/12/2023,0022027624/1,22027624, 5875.00,REDACTED PERSONAL DATA,01894000,,Contribution from Other Bodies,Homelessness,C01AACV1995001,
http://statistics.data.gov.uk/id/local-authority/29UP,Tonbridge & Malling Borough Council,4/12/2023,0022027625/3,22027625, 5012.75,Specialist Hygiene Services,01466100,,Payment re Prev Yrs Cred Acc,Sundry Creditors SSLTS,J80TL000001101,
http://statistics.data.gov.uk/id/local-authority/29UP,Tonbridge & Malling Borough Council,4/12/2023,0022027626/1,22027626, 298.46,South East Water Ltd,00572200,,Water Charges (Metered),Homelessness,C01AATNPR24001,
http://statistics.data.gov.uk/id/local-authority/29UP,Tonbridge & Malling Borough Council,4/12/2023,0022027627/1,22027627, 298.46,South East Water Ltd,00572200,,Water Charges (Metered),Homelessness,C01AATNPR24001,
http://statistics.data.gov.uk/id/local-authority/29UP,Tonbridge & Malling Borough Council,4/12/2023,0022027628/3,22027628, 180.00,Britains Limited,01743900,,Repairs & Mtce to Buildings,Homelessness,C01AA000020101,
http://statistics.data.gov.uk/id/local-authority/29UP,Tonbridge & Malling Borough Council,4/12/2023,0022027629/1,22027629, 105.00,Acoustic Calibration Services Ltd,00775900,,Maintenance - General,Environmental Protection,H32SN000040135,220003320
http://statistics.data.gov.uk/id/local-authority/29UP,Tonbridge & Malling Borough Council,4/12/2023,0022027630/3,22027630, 3193.35,Ward Security LTD,01490000,,Payment re Prev Yrs Cred Acc,Sundry Creditors SSLTS,J80TL000001101,
http://statistics.data.gov.uk/id/local-authority/29UP,Tonbridge & Malling Borough Council,4/12/2023,0022027631/1,22027631, 340.00,Britains Limited,01743900,,Repairs & Mtce to Buildings,Homelessness,C01AATNHS20101,220003326
http://statistics.data.gov.uk/id/local-authority/29UP,Tonbridge & Malling Borough Council,4/12/2023,0022027632/3,22027632, 20400.00,National Enforcement Solutions,01884500,,Payment re Prev Yrs Cred Acc,Sundry Creditors SSLTS,J80TL000001101,
http://statistics.data.gov.uk/id/local-authority/29UP,Tonbridge & Malling Borough Council,4/12/2023,0022027633/3,22027633, 275.00,Monitor Pest Control Ltd,01476700,,Payment re Prev Yrs Cred Acc,Sundry Creditors SSLTS,J80TL000001101,
http://statistics.data.gov.uk/id/local-authority/29UP,Tonbridge & Malling Borough Council,4/12/2023,0022027634/1,22027634, 880.00,WRM Property Services,01878100,,Payment re Prev Yrs Cred Acc,Sundry Creditors PHEHS,J80TB000001101,
http://statistics.data.gov.uk/id/local-authority/29UP,Tonbridge & Malling Borough Council,4/12/2023,0022027635/1,22027635, 10932.00,SPA CAFFE LIMITED,00127100,,Payment re Prev Yrs Cred Acc,Sundry Creditors PHEHS,J80TB000001101,
http://statistics.data.gov.uk/id/local-authority/29UP,Tonbridge & Malling Borough Council,4/12/2023,0022027636/1,22027636, 2615.82,The Care Group-Housing & Care Trust,01699600,,Payment re Prev Yrs Cred Acc,Sundry Creditors PHEHS,J80TB000001101,
http://statistics.data.gov.uk/id/local-authority/29UP,Tonbridge & Malling Borough Council,4/12/2023,0022027637/1,22027637, 1519.00,Simply Rented Ltd ,01691400,,Payment re Prev Yrs Cred Acc,Sundry Creditors PHEHS,J80TB000001101,
http://statistics.data.gov.uk/id/local-authority/29UP,Tonbridge & Malling Borough Council,4/12/2023,0022027638/1,22027638, 1705.00,Simon Niblett Lettings,00072600,,Payment re Prev Yrs Cred Acc,Sundry Creditors PHEHS,J80TB000001101,
http://statistics.data.gov.uk/id/local-authority/29UP,Tonbridge & Malling Borough Council,4/12/2023,0022027639/1,22027639, 10044.00,Simon Niblett Lettings,00072600,,Payment re Prev Yrs Cred Acc,Sundry Creditors PHEHS,J80TB000001101,
http://statistics.data.gov.uk/id/local-authority/29UP,Tonbridge & Malling Borough Council,4/12/2023,0022027640/1,22027640, 5623.50,Premier Property Providers,01785400,,Payment re Prev Yrs Cred Acc,Sundry Creditors PHEHS,J80TB000001101,
http://statistics.data.gov.uk/id/local-authority/29UP,Tonbridge & Malling Borough Council,4/12/2023,0022027641/1,22027641, 394.53,Premier Inn,01217400,,Payment re Prev Yrs Cred Acc,Sundry Creditors PHEHS,J80TB000001101,
http://statistics.data.gov.uk/id/local-authority/29UP,Tonbridge & Malling Borough Council,4/12/2023,0022027642/1,22027642, 25791.00,Paramount Independent Property Suppliers,01595300,,Payment re Prev Yrs Cred Acc,Sundry Creditors PHEHS,J80TB000001101,
http://statistics.data.gov.uk/id/local-authority/29UP,Tonbridge & Malling Borough Council,4/12/2023,0022027643/1,22027643, 1146.69,British Gas Services LTD,01260000,,Electricity,Homelessness,C01AAMAUN21002,
http://statistics.data.gov.uk/id/local-authority/29UP,Tonbridge & Malling Borough Council,4/12/2023,0022027644/1,22027644, 8.89,Octopus Energy,01895300,,Electricity,Homelessness,C01AATNHS21002,
http://statistics.data.gov.uk/id/local-authority/29UP,Tonbridge & Malling Borough Council,4/12/2023,0022027645/1,22027645, 6266.00,Smart Property Professionals,01815100,,Payment re Prev Yrs Cred Acc,Sundry Creditors PHEHS,J80TB000001101,
http://statistics.data.gov.uk/id/local-authority/29UP,Tonbridge & Malling Borough Council,4/12/2023,0022027646/1,22027646, 18.70,Maidstone Borough Council,01173700,,Council Tax,Homelessness,C01AA000023002,
http://statistics.data.gov.uk/id/local-authority/29UP,Tonbridge & Malling Borough Council,4/12/2023,0022027647/1,22027647, 11.22,Maidstone Borough Council,01173700,,Council Tax,Homelessness,C01AA000023002,
http://statistics.data.gov.uk/id/local-authority/29UP,Tonbridge & Malling Borough Council,4/12/2023,0022027648/1,22027648, 6119.00,Less Homeless Ltd,01489300,,Payment re Prev Yrs Cred Acc,Sundry Creditors PHEHS,J80TB000001101,
http://statistics.data.gov.uk/id/local-authority/29UP,Tonbridge & Malling Borough Council,4/12/2023,0022027649/1,22027649, 1891.00,Kent Housing,01503200,,Payment re Prev Yrs Cred Acc,Sundry Creditors PHEHS,J80TB000001101,
http://statistics.data.gov.uk/id/local-authority/29UP,Tonbridge & Malling Borough Council,4/12/2023,0022027650/1,22027650, 4086.00,Kent Accommodation Ltd,01722000,,Payment re Prev Yrs Cred Acc,Sundry Creditors PHEHS,J80TB000001101,
http://statistics.data.gov.uk/id/local-authority/29UP,Tonbridge & Malling Borough Council,4/12/2023,0022027651/1,22027651, 424.00,Keep Britain Tidy,00519900,,Maintenance of Grounds,Sports Grounds,B13ET000020402,210057072
http://statistics.data.gov.uk/id/local-authority/29UP,Tonbridge & Malling Borough Council,4/12/2023,0022027652/1,22027652, 5239.00,House to Home Lettings Ltd ,01647600,,Payment re Prev Yrs Cred Acc,Sundry Creditors PHEHS,J80TB000001101,
http://statistics.data.gov.uk/id/local-authority/29UP,Tonbridge & Malling Borough Council,4/12/2023,0022027653/1,22027653, 800.00,Green Recycling LTD,01563000,,Payment re Prev Yrs Cred Acc,Sundry Creditors SSLTS,J80TL000001101,
http://statistics.data.gov.uk/id/local-authority/29UP,Tonbridge & Malling Borough Council,4/12/2023,0022027654/1,22027654, 490.00,Countrystyle Group,00835900,781981681,Payment re Prev Yrs Cred Acc,Sundry Creditors SSLTS,J80TL000001101,
http://statistics.data.gov.uk/id/local-authority/29UP,Tonbridge & Malling Borough Council,4/12/2023,0022027655/1,22027655, 4645.60,Countrystyle Group,00835900,781981681,Payment re Prev Yrs Cred Acc,Sundry Creditors SSLTS,J80TL000001101,
http://statistics.data.gov.uk/id/local-authority/29UP,Tonbridge & Malling Borough Council,4/12/2023,0022027656/1,22027656, 2800.00,Counterweight LTD,01506600,,Payment re Prev Yrs Cred Acc,Sundry Creditors PHEHS,J80TB000001101,
http://statistics.data.gov.uk/id/local-authority/29UP,Tonbridge & Malling Borough Council,4/12/2023,0022027657/1,22027657, 24428.00,Social & Community Care,01768400,,Payment re Prev Yrs Cred Acc,Sundry Creditors PHEHS,J80TB000001101,
http://statistics.data.gov.uk/id/local-authority/29UP,Tonbridge & Malling Borough Council,4/12/2023,0022027658/1,22027658, 349.44,Amazon EU SARL,01738400,,Payment re Prev Yrs Cred Acc,Sundry Creditors PHEHS,J80TB000001101,
http://statistics.data.gov.uk/id/local-authority/29UP,Tonbridge & Malling Borough Council,4/12/2023,0022027659/1,22027659, 331.20,Town & Country Housing Group,01385400,,Other Expenses,Disabled Facilities Grant Mand,P03AC000009908,
http://statistics.data.gov.uk/id/local-authority/29UP,Tonbridge & Malling Borough Council,4/12/2023,0022027660/1,22027660, 890.59,Town & Country Housing Group,01385400,,Other Expenses,Disabled Facilities Grant Mand,P03AC000009908,
http://statistics.data.gov.uk/id/local-authority/29UP,Tonbridge & Malling Borough Council,4/12/2023,0022027661/1,22027661, 1061.84,Town & Country Housing Group,01385400,,Other Expenses,Disabled Facilities Grant Mand,P03AC000009908,
http://statistics.data.gov.uk/id/local-authority/29UP,Tonbridge & Malling Borough Council,4/12/2023,0022027662/1,22027662, 7332.23,Lifestyle (KENT) LTD,01348800,,Other Expenses,Disabled Facilities Grant Mand,P03AC000009908,
http://statistics.data.gov.uk/id/local-authority/29UP,Tonbridge & Malling Borough Council,4/12/2023,0022027663/1,22027663, 1026.43,Town & Country Housing Group,01385400,,Other Expenses,Disabled Facilities Grant Mand,P03AC000009908,
http://statistics.data.gov.uk/id/local-authority/29UP,Tonbridge & Malling Borough Council,4/12/2023,0022027664/1,22027664, 7086.32,Hubbard & Houghton Construction Ltd,00970600,,Other Expenses,Disabled Facilities Grant Mand,P03AC000009908,
http://statistics.data.gov.uk/id/local-authority/29UP,Tonbridge & Malling Borough Council,4/12/2023,0022027665/1,22027665, 3131.87,Town & Country Housing Group,01385400,,Other Expenses,Disabled Facilities Grant Mand,P03AC000009908,
http://statistics.data.gov.uk/id/local-authority/29UP,Tonbridge & Malling Borough Council,4/12/2023,0022027666/1,22027666, 2232.00,1st  Steps Housing Kent,01716100,,Payment re Prev Yrs Cred Acc,Sundry Creditors PHEHS,J80TB000001101,
http://statistics.data.gov.uk/id/local-authority/29UP,Tonbridge & Malling Borough Council,4/12/2023,0022027667/1,22027667, 24.57,Octopus Energy,01895300,,Electricity,Homelessness,C01AA000021002,
http://statistics.data.gov.uk/id/local-authority/29UP,Tonbridge & Malling Borough Council,4/12/2023,0022027668/1,22027668, 8.73,Maidstone Borough Council,01173700,,Council Tax,Homelessness,C01AA000023002,
http://statistics.data.gov.uk/id/local-authority/29UP,Tonbridge & Malling Borough Council,4/12/2023,0022027669/1,22027669, 768.10,Town & Country Housing Group,01385400,,Contribution from Other Bodies,Homelessness,C01AACV1995001,
http://statistics.data.gov.uk/id/local-authority/29UP,Tonbridge & Malling Borough Council,4/12/2023,0031019363/3,31019363, 3356.50,Tonbridge & Malling Leisure Trust,01469100,,Payment re Prev Yrs Cred Acc,Sundry Creditors SSLTS,J80TL000001101,
http://statistics.data.gov.uk/id/local-authority/29UP,Tonbridge & Malling Borough Council,4/12/2023,0031019365/3,31019365, 74.01,Shell U.K. Oil Products Limited,01673300,,"Petrol, Diesel & Oil",Patrolling,B22LF000030106,
http://statistics.data.gov.uk/id/local-authority/29UP,Tonbridge & Malling Borough Council,4/12/2023,0031019365/4,31019365, 107.63,Shell U.K. Oil Products Limited,01673300,,"Petrol, Diesel & Oil",Parking Off-Street,E10HA000030106,
http://statistics.data.gov.uk/id/local-authority/29UP,Tonbridge & Malling Borough Council,4/12/2023,0031019365/5,31019365, 107.63,Shell U.K. Oil Products Limited,01673300,,"Petrol, Diesel & Oil",Parking On-Street,E10HD000030106,
http://statistics.data.gov.uk/id/local-authority/29UP,Tonbridge & Malling Borough Council,4/12/2023,0031019376/3,31019376, 195.48,British Telecommunications Plc,00012800,,Maintenance - General,Security Services Management,E09GA000040135,
http://statistics.data.gov.uk/id/local-authority/29UP,Tonbridge & Malling Borough Council,4/12/2023,0031019377/3,31019377, 195.48,British Telecommunications Plc,00012800,,Maintenance - General,Security Services Management,E09GA000040135,
http://statistics.data.gov.uk/id/local-authority/29UP,Tonbridge & Malling Borough Council,4/12/2023,0031019378/3,31019378, 195.48,British Telecommunications Plc,00012800,,Maintenance - General,Security Services Management,E09GA000040135,
http://statistics.data.gov.uk/id/local-authority/29UP,Tonbridge & Malling Borough Council,4/12/2023,0031019379/1,31019379, 369.60,British Parking Association,00380000,,Adjudication & Enforcement Ser,Parking Off-Street,E10HA000044230,310042983
http://statistics.data.gov.uk/id/local-authority/29UP,Tonbridge & Malling Borough Council,4/12/2023,0031019379/2,31019379, 554.40,British Parking Association,00380000,,Adjudication & Enforcement Ser,Parking On-Street,E10HD000044230,310042983
http://statistics.data.gov.uk/id/local-authority/29UP,Tonbridge & Malling Borough Council,4/12/2023,0031019380/3,31019380, 1465.00,Marston,01485000,,Payment re Prev Yrs Cred Acc,Sundry Creditors SSLTS,J80TL000001101,
http://statistics.data.gov.uk/id/local-authority/29UP,Tonbridge & Malling Borough Council,4/12/2023,0031019381/1,31019381, 723.90,SKF Contractors Ltd,00092000,,Payment re Prev Yrs Cred Acc,Sundry Creditors SSLTS,J80TL000001101,
http://statistics.data.gov.uk/id/local-authority/29UP,Tonbridge & Malling Borough Council,4/12/2023,0031019382/1,31019382, 2730.70,HEREF Tonbridge Ltd,01518900,,Payment re Prev Yrs Cred Acc,Sundry Creditors SSLTS,J80TL000001101,
http://statistics.data.gov.uk/id/local-authority/29UP,Tonbridge & Malling Borough Council,4/12/2023,0031019383/1,31019383, 450.00,Duke Contractors Ltd,00082900,,Payment re Prev Yrs Cred Acc,Sundry Creditors SSLTS,J80TL000001101,
http://statistics.data.gov.uk/id/local-authority/29UP,Tonbridge & Malling Borough Council,4/12/2023,0031019384/1,31019384, 195.48,British Telecommunications Plc,00012800,,Maintenance - General,Security Services Management,E09GA000040135,
http://statistics.data.gov.uk/id/local-authority/29UP,Tonbridge & Malling Borough Council,4/12/2023,0031019385/1,31019385, 450.00,Arnold & Court Ltd,01411300,,Payment re Prev Yrs Cred Acc,Sundry Creditors SSLTS,J80TL000001101,
http://statistics.data.gov.uk/id/local-authority/29UP,Tonbridge & Malling Borough Council,4/12/2023,0031019386/1,31019386, 425.00,Arnold & Court Ltd,01411300,,Payment re Prev Yrs Cred Acc,Sundry Creditors SSLTS,J80TL000001101,
http://statistics.data.gov.uk/id/local-authority/29UP,Tonbridge & Malling Borough Council,4/12/2023,0031019387/1,31019387, 650.00,Arnold & Court Ltd,01411300,,Payment re Prev Yrs Cred Acc,Sundry Creditors SSLTS,J80TL000001101,
http://statistics.data.gov.uk/id/local-authority/29UP,Tonbridge & Malling Borough Council,4/12/2023,0032010149/3,32010149, 1995.00,Vivid Resourcing,01773700,,Payment re Prev Yrs Cred Acc,Sundry Creditors PHEHS,J80TB000001101,
http://statistics.data.gov.uk/id/local-authority/29UP,Tonbridge & Malling Borough Council,4/12/2023,0032010151/3,32010151, 1671.18,The Oyster Partnership,01196400,,Payment re Prev Yrs Cred Acc,Sundry Creditors PHEHS,J80TB000001101,
http://statistics.data.gov.uk/id/local-authority/29UP,Tonbridge & Malling Borough Council,4/12/2023,0032010152/3,32010152, 1739.00,The Oyster Partnership,01196400,,Payment re Prev Yrs Cred Acc,Sundry Creditors PHEHS,J80TB000001101,
http://statistics.data.gov.uk/id/local-authority/29UP,Tonbridge & Malling Borough Council,4/12/2023,0032010153/3,32010153, 171.36,KM Media Group Ltd,00053900,,Payment re Prev Yrs Cred Acc,Sundry Creditors PHEHS,J80TB000001101,
http://statistics.data.gov.uk/id/local-authority/29UP,Tonbridge & Malling Borough Council,4/12/2023,0032010154/3,32010154, 501.80,KH Recruitment Ltd,01738900,,Payment re Prev Yrs Cred Acc,Sundry Creditors PHEHS,J80TB000001101,
http://statistics.data.gov.uk/id/local-authority/29UP,Tonbridge & Malling Borough Council,4/12/2023,0032010155/1,32010155, 49.75,KCS - KCC,00054200,,Stationery,Planning Sals&Overheads,D01AJDJ0143003,320003502
http://statistics.data.gov.uk/id/local-authority/29UP,Tonbridge & Malling Borough Council,4/12/2023,0032010156/1,32010156, 1612.50,Carrington West Limited,01844500,,Payment re Prev Yrs Cred Acc,Sundry Creditors PHEHS,J80TB000001101,
http://statistics.data.gov.uk/id/local-authority/29UP,Tonbridge & Malling Borough Council,4/12/2023,0032010157/1,32010157, 1311.50,Carrington West Limited,01844500,,Payment re Prev Yrs Cred Acc,Sundry Creditors PHEHS,J80TB000001101,
http://statistics.data.gov.uk/id/local-authority/29UP,Tonbridge & Malling Borough Council,4/12/2023,0041035398/3,41035398, 612.26,Morgan Hunt UK Ltd,01086900,,Temporary Staff,Finance Sals&Overheads,D01AFDF1111300,
http://statistics.data.gov.uk/id/local-authority/29UP,Tonbridge & Malling Borough Council,4/12/2023,0041035407/3,41035407, 2677.90,Rundle & Co Ltd,00087200,,Bailiffs Commission,Local Revenue & NNDR Collect,D41QA000044075,
http://statistics.data.gov.uk/id/local-authority/29UP,Tonbridge & Malling Borough Council,4/12/2023,0041035407/5,41035407, 74.99,Rundle & Co Ltd,00087200,,Bailiffs Commission,Local Revenue & NNDR Collect,D41QA000044075,
http://statistics.data.gov.uk/id/local-authority/29UP,Tonbridge & Malling Borough Council,4/12/2023,0041035408/3,41035408, 79.87,Adelante Software Limited,01393800,812115871,Credit Card Commission,Banking Arrangements,D43QK000044082,
http://statistics.data.gov.uk/id/local-authority/29UP,Tonbridge & Malling Borough Council,4/12/2023,0041035409/3,41035409, 2095.00,LG Futures Ltd,01108200,,Subscriptions,Finance Sals&Overheads,D01AFDF0247002,
http://statistics.data.gov.uk/id/local-authority/29UP,Tonbridge & Malling Borough Council,4/12/2023,0041035409/4,41035409, 1945.00,LG Futures Ltd,01108200,,Subscriptions,Finance Sals&Overheads,D01AFDF0247002,
http://statistics.data.gov.uk/id/local-authority/29UP,Tonbridge & Malling Borough Council,4/12/2023,0041035410/1,41035410, 2535.00,Cabinet Office,01631100,,Other Expenses,Finance Sals&Overheads,D01AFDF0648010,
http://statistics.data.gov.uk/id/local-authority/29UP,Tonbridge & Malling Borough Council,4/12/2023,0041035413/1,41035413, 2373.90,Rundle & Co Ltd,00087200,,Bailiffs Commission,Local Revenue & NNDR Collect,D41QA000044075,
http://statistics.data.gov.uk/id/local-authority/29UP,Tonbridge & Malling Borough Council,4/12/2023,0041035414/1,41035414, 46.90,Rundle & Co Ltd,00087200,,Bailiffs Commission,Local Revenue & NNDR Collect,D41QA000044075,
http://statistics.data.gov.uk/id/local-authority/29UP,Tonbridge & Malling Borough Council,4/12/2023,0041035417/1,41035417, 15.00,BNP Paribas,01360500,,Bank Charges,Banking Arrangements,D43QK000044222,
http://statistics.data.gov.uk/id/local-authority/29UP,Tonbridge & Malling Borough Council,4/17/2023,0041035435/1,41035435, 59.95,Allpay Limited,01816500,,Giro / Swipe Card Charges,Local Revenue & NNDR Collect,D41QA000044083,
http://statistics.data.gov.uk/id/local-authority/29UP,Tonbridge & Malling Borough Council,4/18/2023,0011045970/3,11045970, 12000.00,KCS - KCC,00054200,,Payment re Prev Yrs Cred Acc,Sundry Creditors Admin & Prop,J80TA000001101,
http://statistics.data.gov.uk/id/local-authority/29UP,Tonbridge & Malling Borough Council,4/18/2023,0011045970/4,11045970, 2373.50,KCS - KCC,00054200,,Payment re Prev Yrs Cred Acc,Sundry Creditors Admin & Prop,J80TA000001101,
http://statistics.data.gov.uk/id/local-authority/29UP,Tonbridge & Malling Borough Council,4/18/2023,0011045970/5,11045970, 2373.50,KCS - KCC,00054200,,Payment re Prev Yrs Cred Acc,Sundry Creditors Admin & Prop,J80TA000001101,
http://statistics.data.gov.uk/id/local-authority/29UP,Tonbridge & Malling Borough Council,4/19/2023,0011045936/1,11045936, 600.00,Lawyers in Local Government,01453200,,Reference Books & Publications,Legal Sals&Overheads,D01ARDR0043010,
http://statistics.data.gov.uk/id/local-authority/29UP,Tonbridge & Malling Borough Council,4/19/2023,0011045937/1,11045937, 589.41,KH Recruitment Ltd,01738900,,Payment re Prev Yrs Cred Acc,Sundry Creditors Admin & Prop,J80TA000001101,
http://statistics.data.gov.uk/id/local-authority/29UP,Tonbridge & Malling Borough Council,4/19/2023,0011045938/1,11045938, 12.75,REDACTED PERSONAL DATA,01683000,,Castle Catering Provisions,Ton Castle Council Chamber,D21FC000041015,
http://statistics.data.gov.uk/id/local-authority/29UP,Tonbridge & Malling Borough Council,4/19/2023,0011045940/1,11045940, 1217.80,Sellick Partnership Group Limited,01336800,,Payment re Prev Yrs Cred Acc,Sundry Creditors Admin & Prop,J80TA000001101,
http://statistics.data.gov.uk/id/local-authority/29UP,Tonbridge & Malling Borough Council,4/19/2023,0011045941/1,11045941, 589.41,KH Recruitment Ltd,01738900,,Payment re Prev Yrs Cred Acc,Sundry Creditors Admin & Prop,J80TA000001101,
http://statistics.data.gov.uk/id/local-authority/29UP,Tonbridge & Malling Borough Council,4/19/2023,0011045942/1,11045942, 3233.80,TMS Protection Ltd,01744300,,Payment re Prev Yrs Cred Acc,Sundry Creditors Admin & Prop,J80TA000001101,
http://statistics.data.gov.uk/id/local-authority/29UP,Tonbridge & Malling Borough Council,4/19/2023,0011045942/2,11045942, 1102.00,TMS Protection Ltd,01744300,,Payment re Prev Yrs Cred Acc,Sundry Creditors Admin & Prop,J80TA000001101,
http://statistics.data.gov.uk/id/local-authority/29UP,Tonbridge & Malling Borough Council,4/19/2023,0011045943/1,11045943, 1217.80,Sellick Partnership Group Limited,01336800,,Payment re Prev Yrs Cred Acc,Sundry Creditors Admin & Prop,J80TA000001101,
http://statistics.data.gov.uk/id/local-authority/29UP,Tonbridge & Malling Borough Council,4/19/2023,0011045944/1,11045944, 1862.67,GSF SANDYLIGHT LTD,01705300,,Payment re Prev Yrs Cred Acc,Sundry Creditors Admin & Prop,J80TA000001101,
http://statistics.data.gov.uk/id/local-authority/29UP,Tonbridge & Malling Borough Council,4/19/2023,0011045946/1,11045946, 19968.00,Thomson Reuters,01323200,,Reference Books & Publications,Legal Sals&Overheads,D01AR000043010,
http://statistics.data.gov.uk/id/local-authority/29UP,Tonbridge & Malling Borough Council,4/19/2023,0011045947/1,11045947, 869.76,Key Craft,01148600,,Purchases,TIC Stock Account,K18AX000001002,
http://statistics.data.gov.uk/id/local-authority/29UP,Tonbridge & Malling Borough Council,4/19/2023,0011045948/1,11045948, 477.90,KH Recruitment Ltd,01738900,,Temporary Staff,Personnel Sals&Overheads,D01ABDB0311300,
http://statistics.data.gov.uk/id/local-authority/29UP,Tonbridge & Malling Borough Council,4/19/2023,0011045949/1,11045949, 419.30,Duncan Campbell,01896100,,Purchases,TIC Stock Account,K18AX000001002,
http://statistics.data.gov.uk/id/local-authority/29UP,Tonbridge & Malling Borough Council,4/19/2023,0011045950/1,11045950, 23.37,Oasis Group  - Box-It South East,00966800,931579211,Purchases,Electoral Registration,D31MF000040101,
http://statistics.data.gov.uk/id/local-authority/29UP,Tonbridge & Malling Borough Council,4/19/2023,0011045951/1,11045951, 3500.00,REDACTED PERSONAL DATA,01497400,,Economic Development & Regen,Eco Dev & Reg Gen Bus Support,D52TD000047027,
http://statistics.data.gov.uk/id/local-authority/29UP,Tonbridge & Malling Borough Council,4/19/2023,0011045952/1,11045952, 5000.00,Kings Hill Golf Club,01680500,,Economic Development & Regen,Eco Dev & Reg Gen Bus Support,D52TD000047027,
http://statistics.data.gov.uk/id/local-authority/29UP,Tonbridge & Malling Borough Council,4/19/2023,0011045953/1,11045953, 6000.00,Oaks Specialist College,01895800,,Economic Development & Regen,Eco Dev & Reg Gen Bus Support,D52TD000047027,
http://statistics.data.gov.uk/id/local-authority/29UP,Tonbridge & Malling Borough Council,4/19/2023,0011045954/1,11045954, 2345.98,The Copyright Licensing Agency Ltd,00911200,,Copyright license,General Admin Admin & Prop,D24GR000044020,
http://statistics.data.gov.uk/id/local-authority/29UP,Tonbridge & Malling Borough Council,4/19/2023,0011045955/1,11045955, 156.00,Spy Alarms Ltd,01608800,,BRREP Servicing-IntruderAlarm,Leybourne Lakes Country Park,M15HLP20001939,
http://statistics.data.gov.uk/id/local-authority/29UP,Tonbridge & Malling Borough Council,4/19/2023,0011045956/3,11045956, 1757.79,Royal Mail,00086200,,Payment re Prev Yrs Cred Acc,Sundry Creditors Admin & Prop,J80TA000001101,
http://statistics.data.gov.uk/id/local-authority/29UP,Tonbridge & Malling Borough Council,4/19/2023,0011045956/4,11045956, 17.38,Royal Mail,00086200,,Payment re Prev Yrs Cred Acc,Sundry Creditors Admin & Prop,J80TA000001101,
http://statistics.data.gov.uk/id/local-authority/29UP,Tonbridge & Malling Borough Council,4/19/2023,0011045956/5,11045956, 2.45,Royal Mail,00086200,,Payment re Prev Yrs Cred Acc,Sundry Creditors Admin & Prop,J80TA000001101,
http://statistics.data.gov.uk/id/local-authority/29UP,Tonbridge & Malling Borough Council,4/19/2023,0011045957/3,11045957, 995.18,Royal Mail,00086200,,Payment re Prev Yrs Cred Acc,Sundry Creditors Admin & Prop,J80TA000001101,
http://statistics.data.gov.uk/id/local-authority/29UP,Tonbridge & Malling Borough Council,4/19/2023,0011045957/4,11045957, 1.96,Royal Mail,00086200,,Payment re Prev Yrs Cred Acc,Sundry Creditors Admin & Prop,J80TA000001101,
http://statistics.data.gov.uk/id/local-authority/29UP,Tonbridge & Malling Borough Council,4/19/2023,0011045957/5,11045957, 2.45,Royal Mail,00086200,,Payment re Prev Yrs Cred Acc,Sundry Creditors Admin & Prop,J80TA000001101,
http://statistics.data.gov.uk/id/local-authority/29UP,Tonbridge & Malling Borough Council,4/19/2023,0011045958/3,11045958, 1875.00,HazleMcCormack Young LLP,01793100,,Payment re Prev Yrs Cred Acc,Sundry Creditors Admin & Prop,J80TA000001101,
http://statistics.data.gov.uk/id/local-authority/29UP,Tonbridge & Malling Borough Council,4/19/2023,0011045959/3,11045959, 1426.76,The Oyster Partnership,01196400,,Payment re Prev Yrs Cred Acc,Sundry Creditors Admin & Prop,J80TA000001101,
http://statistics.data.gov.uk/id/local-authority/29UP,Tonbridge & Malling Borough Council,4/19/2023,0011045960/3,11045960, 1561.36,The Oyster Partnership,01196400,,Payment re Prev Yrs Cred Acc,Sundry Creditors Admin & Prop,J80TA000001101,
http://statistics.data.gov.uk/id/local-authority/29UP,Tonbridge & Malling Borough Council,4/19/2023,0011045962/1,11045962, 740.00,G C Industrial Heating Services,00578100,,BRREP Plant renewals,Tonbridge Swimming Pool,M15HBP20001909,110070156
http://statistics.data.gov.uk/id/local-authority/29UP,Tonbridge & Malling Borough Council,4/19/2023,0011045963/3,11045963, 350.00,BML Building Services Ltd,01505000,,BRREP Drain and gully cleaning,PC - General,M15JAP20001975,
http://statistics.data.gov.uk/id/local-authority/29UP,Tonbridge & Malling Borough Council,4/19/2023,0011045964/1,11045964, 2640.48,Chubb Fire & Security Ltd,00115400,174605362,BRREP Servicing-IntruderAlarm,Tonbridge Swimming Pool,M15HBP20001939,110070164
http://statistics.data.gov.uk/id/local-authority/29UP,Tonbridge & Malling Borough Council,4/19/2023,0011045965/1,11045965, 13768.00,DSSL Group Ltd,01839500,,Contract Payments,UK Shared Prosperity Fund,P06FNFN1009904,110070092
http://statistics.data.gov.uk/id/local-authority/29UP,Tonbridge & Malling Borough Council,4/19/2023,0011045965/2,11045965, 2256.80,DSSL Group Ltd,01839500,,Contract Payments,UK Shared Prosperity Fund,P06FNFN1009904,110070092
http://statistics.data.gov.uk/id/local-authority/29UP,Tonbridge & Malling Borough Council,4/19/2023,0011045965/3,11045965, 4772.32,DSSL Group Ltd,01839500,,Contract Payments,UK Shared Prosperity Fund,P06FNFN1009904,110070092
http://statistics.data.gov.uk/id/local-authority/29UP,Tonbridge & Malling Borough Council,4/19/2023,0011045966/1,11045966, 2539.43,Hawden MEP Ltd.,01886600,,Professional Fees,Gibson East Refurbishment,P06AL000009903,110070067
http://statistics.data.gov.uk/id/local-authority/29UP,Tonbridge & Malling Borough Council,4/19/2023,0011045966/2,11045966, 4232.38,Hawden MEP Ltd.,01886600,,Professional Fees,Gibson East Refurbishment,P06AL000009903,110070067
http://statistics.data.gov.uk/id/local-authority/29UP,Tonbridge & Malling Borough Council,4/19/2023,0011045967/1,11045967, 120.00,Mr Mark Williams,01184500,,Information & Publicity,Information & Publicity,D32MJ000044076,110070109
http://statistics.data.gov.uk/id/local-authority/29UP,Tonbridge & Malling Borough Council,4/19/2023,0011045969/3,11045969, 63408.00,Inspire Contract Services Ltd,01834500,,Payment re Prev Yrs Cred Acc,Sundry Creditors Admin & Prop,J80TA000001101,
http://statistics.data.gov.uk/id/local-authority/29UP,Tonbridge & Malling Borough Council,4/19/2023,0011045973/3,11045973, 1292.68,Canon (UK) Limited,00298700,,Purchases - Paper,Printing,D22GA000040102,
http://statistics.data.gov.uk/id/local-authority/29UP,Tonbridge & Malling Borough Council,4/19/2023,0011045974/1,11045974, 140.00,East Sussex Fire Ltd,01843100,,Repairs & Mtce to Buildings,Homelessness,C01AATNHS20101,110069587
http://statistics.data.gov.uk/id/local-authority/29UP,Tonbridge & Malling Borough Council,4/19/2023,0011045975/1,11045975, 3483.50,Broadwater Technologies,01534500,,BRREP Plant renewals,Larkfield Leisure Centre,M15HDP20001909,110070081
http://statistics.data.gov.uk/id/local-authority/29UP,Tonbridge & Malling Borough Council,4/19/2023,0011045978/1,11045978, 120.00,BML Building Services Ltd,01505000,,BRREP Window/door repairs,PC - General,M15JAP20001919,110070147
http://statistics.data.gov.uk/id/local-authority/29UP,Tonbridge & Malling Borough Council,4/19/2023,0011045979/3,11045979, 52.07,Royal Mail,00086200,,Postages - Business Reply,Electoral Registration,D31MF000045003,
http://statistics.data.gov.uk/id/local-authority/29UP,Tonbridge & Malling Borough Council,4/19/2023,0011045980/1,11045980, 1190.00,G C Industrial Heating Services,00578100,,BRREP Servicing - boilers,Tonbridge Swimming Pool,M15HBP20001929,110070162
http://statistics.data.gov.uk/id/local-authority/29UP,Tonbridge & Malling Borough Council,4/19/2023,0011045981/3,11045981, 166.80,Biffa Waste Services Ltd,01284500,,Trade Refuse Charges,Cleaning & Security,D21FD000044008,
http://statistics.data.gov.uk/id/local-authority/29UP,Tonbridge & Malling Borough Council,4/19/2023,0011045982/3,11045982, 85.20,Biffa Waste Services Ltd,01284500,,Trade Refuse Charges,Cleaning & Security,D21FD000044008,
http://statistics.data.gov.uk/id/local-authority/29UP,Tonbridge & Malling Borough Council,4/19/2023,0011045983/1,11045983, 60.90,Biffa Waste Services Ltd,01284500,,Trade Refuse Charges,Cleaning & Security,D21FD000044008,
http://statistics.data.gov.uk/id/local-authority/29UP,Tonbridge & Malling Borough Council,4/19/2023,0011045984/1,11045984, 60.90,Biffa Waste Services Ltd,01284500,,Trade Refuse Charges,Cleaning & Security,D21FD000044008,
http://statistics.data.gov.uk/id/local-authority/29UP,Tonbridge & Malling Borough Council,4/19/2023,0011045985/1,11045985, 193.27,Biffa Waste Services Ltd,01284500,,Trade Refuse Charges,Cleaning & Security,D21FD000044008,
http://statistics.data.gov.uk/id/local-authority/29UP,Tonbridge & Malling Borough Council,4/19/2023,0011045986/1,11045986, 295.00,Wessex Lift Co Ltd,00332600,,BRREP Servicing - lifts,Tonbridge Castle / CAB,M15KFP20001930,110070047
http://statistics.data.gov.uk/id/local-authority/29UP,Tonbridge & Malling Borough Council,4/19/2023,0011045987/1,11045987, 380.00,G C Industrial Heating Services,00578100,,BRREP Response - General,Larkfield Leisure Centre,M15HDP50001997,
http://statistics.data.gov.uk/id/local-authority/29UP,Tonbridge & Malling Borough Council,4/19/2023,0011045988/1,11045988, 800.00,Coloursped Services Ltd,01806600,,Maintenance - General,Printing,D22GA000040135,
http://statistics.data.gov.uk/id/local-authority/29UP,Tonbridge & Malling Borough Council,4/19/2023,0011045989/1,11045989, 100.00,Royal Cars,01857400,,Hospitality,Mayoral & Other Member Support,D29LX000048003,
http://statistics.data.gov.uk/id/local-authority/29UP,Tonbridge & Malling Borough Council,4/19/2023,0011045990/1,11045990, 1507.52,The Oyster Partnership,01196400,,Temporary Staff,Admin & Prop Sals&Overheads,D01AADA1111300,
http://statistics.data.gov.uk/id/local-authority/29UP,Tonbridge & Malling Borough Council,4/19/2023,0011045991/1,11045991, 37.25,Coloursped Services Ltd,01806600,,Maintenance - General,Printing,D22GA000040135,
http://statistics.data.gov.uk/id/local-authority/29UP,Tonbridge & Malling Borough Council,4/19/2023,0011045992/1,11045992, 277.55,Coloursped Services Ltd,01806600,,Maintenance - General,Printing,D22GA000040135,
http://statistics.data.gov.uk/id/local-authority/29UP,Tonbridge & Malling Borough Council,4/19/2023,0011045993/1,11045993, 490.19,Premier Paper Group,01421800,,Purchases - Paper,Printing,D22GA000040102,
http://statistics.data.gov.uk/id/local-authority/29UP,Tonbridge & Malling Borough Council,4/19/2023,0011045995/1,11045995, 11493.68,Royal Mail,00086200,,Payment re Prev Yrs Cred Acc,Sundry Creditors Admin & Prop,J80TA000001101,
http://statistics.data.gov.uk/id/local-authority/29UP,Tonbridge & Malling Borough Council,4/19/2023,0011045995/2,11045995, 44312.80,Royal Mail,00086200,,Payment re Prev Yrs Cred Acc,Sundry Creditors Admin & Prop,J80TA000001101,
http://statistics.data.gov.uk/id/local-authority/29UP,Tonbridge & Malling Borough Council,4/19/2023,0011045995/3,11045995, 3245.80,Royal Mail,00086200,,Payment re Prev Yrs Cred Acc,Sundry Creditors Admin & Prop,J80TA000001101,
http://statistics.data.gov.uk/id/local-authority/29UP,Tonbridge & Malling Borough Council,4/19/2023,0011045995/4,11045995, 22.75,Royal Mail,00086200,,Payment re Prev Yrs Cred Acc,Sundry Creditors Admin & Prop,J80TA000001101,
http://statistics.data.gov.uk/id/local-authority/29UP,Tonbridge & Malling Borough Council,4/19/2023,0011045995/5,11045995, 19.37,Royal Mail,00086200,,Payment re Prev Yrs Cred Acc,Sundry Creditors Admin & Prop,J80TA000001101,
http://statistics.data.gov.uk/id/local-authority/29UP,Tonbridge & Malling Borough Council,4/19/2023,0011045996/1,11045996, 1590.63,Royal Mail,00086200,,Payment re Prev Yrs Cred Acc,Sundry Creditors Admin & Prop,J80TA000001101,
http://statistics.data.gov.uk/id/local-authority/29UP,Tonbridge & Malling Borough Council,4/19/2023,0011045996/2,11045996, 6.72,Royal Mail,00086200,,Payment re Prev Yrs Cred Acc,Sundry Creditors Admin & Prop,J80TA000001101,
http://statistics.data.gov.uk/id/local-authority/29UP,Tonbridge & Malling Borough Council,4/19/2023,0011045996/3,11045996, 1.75,Royal Mail,00086200,,Payment re Prev Yrs Cred Acc,Sundry Creditors Admin & Prop,J80TA000001101,
http://statistics.data.gov.uk/id/local-authority/29UP,Tonbridge & Malling Borough Council,4/19/2023,0011045996/4,11045996, 11800.46,Royal Mail,00086200,,Payment re Prev Yrs Cred Acc,Sundry Creditors Admin & Prop,J80TA000001101,
http://statistics.data.gov.uk/id/local-authority/29UP,Tonbridge & Malling Borough Council,4/19/2023,0011045997/1,11045997, 989.88,Broadwater Technologies,01534500,,BRREP Plant renewals,Larkfield Leisure Centre,M15HDP20001909,110070145
http://statistics.data.gov.uk/id/local-authority/29UP,Tonbridge & Malling Borough Council,4/19/2023,0011045998/1,11045998, 425.00,GreenFish Consulting part of JCML Consul,01627700,,BRREP Energy Efficiency Regs,Shops & Maisonettes,M15NAP30001976,110070120
http://statistics.data.gov.uk/id/local-authority/29UP,Tonbridge & Malling Borough Council,4/19/2023,0011045999/1,11045999, 19.00,KCS - KCC,00054200,,Stationery,Admin & Prop Sals&Overheads,D01AA000043003,110070072
http://statistics.data.gov.uk/id/local-authority/29UP,Tonbridge & Malling Borough Council,4/19/2023,0011045999/2,11045999, 2.85,KCS - KCC,00054200,,Stationery,Admin & Prop Sals&Overheads,D01AA000043003,110070072
http://statistics.data.gov.uk/id/local-authority/29UP,Tonbridge & Malling Borough Council,4/19/2023,0011045999/3,11045999, 129.90,KCS - KCC,00054200,,Stationery,Admin & Prop Sals&Overheads,D01AA000043003,110070072
http://statistics.data.gov.uk/id/local-authority/29UP,Tonbridge & Malling Borough Council,4/19/2023,0011045999/4,11045999, 14.75,KCS - KCC,00054200,,Stationery,Admin & Prop Sals&Overheads,D01AA000043003,110070072
http://statistics.data.gov.uk/id/local-authority/29UP,Tonbridge & Malling Borough Council,4/19/2023,0011045999/5,11045999, 38.97,KCS - KCC,00054200,,Stationery,Admin & Prop Sals&Overheads,D01AA000043003,110070072
http://statistics.data.gov.uk/id/local-authority/29UP,Tonbridge & Malling Borough Council,4/19/2023,0011045999/6,11045999, 7.80,KCS - KCC,00054200,,Stationery,Admin & Prop Sals&Overheads,D01AA000043003,110070072
http://statistics.data.gov.uk/id/local-authority/29UP,Tonbridge & Malling Borough Council,4/19/2023,0011046000/1,11046000, 510.90,REDACTED PERSONAL DATA,01895900,,Other Expenses,Ukrainian Refugee Assistance,D54UA000048010,
http://statistics.data.gov.uk/id/local-authority/29UP,Tonbridge & Malling Borough Council,4/19/2023,0012008688/1,12008688, 767.40,Bytes Software Services,01676900,823818226,Software Hire & Support,Information Technology,D27KD000044059,410032380
http://statistics.data.gov.uk/id/local-authority/29UP,Tonbridge & Malling Borough Council,4/19/2023,0012008689/1,12008689, 235.35,NEC Software Solutions UK Ltd,01073900,202159745,Software Hire & Support,Information Technology,D27KD000044059,410032348
http://statistics.data.gov.uk/id/local-authority/29UP,Tonbridge & Malling Borough Council,4/19/2023,0012008690/1,12008690, 157.00,Office Furniture Online,01319800,,Purchases,Information Technology,D27KD000040101,410032357
http://statistics.data.gov.uk/id/local-authority/29UP,Tonbridge & Malling Borough Council,4/19/2023,0012008690/2,12008690, 9.99,Office Furniture Online,01319800,,Delivery Expenses,Information Technology,D27KD000044069,410032357
http://statistics.data.gov.uk/id/local-authority/29UP,Tonbridge & Malling Borough Council,4/19/2023,0012008691/1,12008691, 133.98,CCS Media Ltd,00018000,,Purchases,Information Technology,D27KD000040101,410032386
http://statistics.data.gov.uk/id/local-authority/29UP,Tonbridge & Malling Borough Council,4/19/2023,0012008691/2,12008691, 2.00,CCS Media Ltd,00018000,,Delivery Expenses,Information Technology,D27KD000044069,410032386
http://statistics.data.gov.uk/id/local-authority/29UP,Tonbridge & Malling Borough Council,4/19/2023,0012008692/3,12008692, 16.66,Esendex Limited,01008900,,Leased Lines & Modems,Information Technology,D27KD000045011,
http://statistics.data.gov.uk/id/local-authority/29UP,Tonbridge & Malling Borough Council,4/19/2023,0012008693/3,12008693, 1771.58,NTT Cloud Communications UK Ltd,01794600,,Software Hire & Support,Information Technology,D27KD000044059,
http://statistics.data.gov.uk/id/local-authority/29UP,Tonbridge & Malling Borough Council,4/19/2023,0012008694/3,12008694, 584.40,Morgan Hunt UK Ltd,01086900,,Temporary Staff,Finance Sals&Overheads,D01AFDF1111300,
http://statistics.data.gov.uk/id/local-authority/29UP,Tonbridge & Malling Borough Council,4/19/2023,0012008695/1,12008695, 314.93,CCS Media Ltd,00018000,,Purchases,Information Technology,D27KD000040101,410032388
http://statistics.data.gov.uk/id/local-authority/29UP,Tonbridge & Malling Borough Council,4/19/2023,0012008695/2,12008695, 119.97,CCS Media Ltd,00018000,,Purchases,Information Technology,D27KD000040101,410032388
http://statistics.data.gov.uk/id/local-authority/29UP,Tonbridge & Malling Borough Council,4/19/2023,0012008695/3,12008695, 9.95,CCS Media Ltd,00018000,,Delivery Expenses,Information Technology,D27KD000044069,410032388
http://statistics.data.gov.uk/id/local-authority/29UP,Tonbridge & Malling Borough Council,4/19/2023,0012008696/1,12008696, 69.99,CCS Media Ltd,00018000,,Toner Cartridges,Information Technology,D27KD000043018,410032389
http://statistics.data.gov.uk/id/local-authority/29UP,Tonbridge & Malling Borough Council,4/19/2023,0012008696/2,12008696, 3.70,CCS Media Ltd,00018000,,Delivery Expenses,Information Technology,D27KD000044069,410032389
http://statistics.data.gov.uk/id/local-authority/29UP,Tonbridge & Malling Borough Council,4/19/2023,0012008697/1,12008697, 185.95,Comtec Enterprises L:td,01699500,,Maintenance - Ancillary Equip,Information Technology,D27KD000040137,410032381
http://statistics.data.gov.uk/id/local-authority/29UP,Tonbridge & Malling Borough Council,4/19/2023,0012008697/2,12008697, 10.00,Comtec Enterprises L:td,01699500,,Delivery Expenses,Information Technology,D27KD000044069,410032381
http://statistics.data.gov.uk/id/local-authority/29UP,Tonbridge & Malling Borough Council,4/19/2023,0012008698/1,12008698, 12804.00,Vanquish Tech,01798700,124406447,Initial Furniture & Equipment,Capital Renewals IT,P06FBFB2009906,410032387
http://statistics.data.gov.uk/id/local-authority/29UP,Tonbridge & Malling Borough Council,4/19/2023,0012008699/1,12008699, 4118.40,Vanquish Tech,01798700,124406447,Initial Furniture & Equipment,Capital Renewals IT,P06FBFB2009906,410032387
http://statistics.data.gov.uk/id/local-authority/29UP,Tonbridge & Malling Borough Council,4/19/2023,0012008700/1,12008700, 15000.00,NEC Software Solutions UK Ltd,01073900,202159745,Software Hire & Support,Information Technology,D27KD000044059,410032349
http://statistics.data.gov.uk/id/local-authority/29UP,Tonbridge & Malling Borough Council,4/19/2023,0012008700/2,12008700, 17000.00,NEC Software Solutions UK Ltd,01073900,202159745,Software Hire & Support,Information Technology,D27KD000044059,410032349
http://statistics.data.gov.uk/id/local-authority/29UP,Tonbridge & Malling Borough Council,4/19/2023,0012008700/3,12008700, 14400.00,NEC Software Solutions UK Ltd,01073900,202159745,Software Hire & Support,Information Technology,D27KD000044059,410032349
http://statistics.data.gov.uk/id/local-authority/29UP,Tonbridge & Malling Borough Council,4/19/2023,0012008700/4,12008700, 1000.00,NEC Software Solutions UK Ltd,01073900,202159745,Software Hire & Support,Information Technology,D27KD000044059,410032349
http://statistics.data.gov.uk/id/local-authority/29UP,Tonbridge & Malling Borough Council,4/19/2023,0012008700/5,12008700, 3000.00,NEC Software Solutions UK Ltd,01073900,202159745,Software Hire & Support,Information Technology,D27KD000044059,410032349
http://statistics.data.gov.uk/id/local-authority/29UP,Tonbridge & Malling Borough Council,4/19/2023,0012008701/1,12008701, 25.50,Nexus Data Systems Ltd,01057000,,Software Hire & Support,Information Technology,D27KD000044059,410032394
http://statistics.data.gov.uk/id/local-authority/29UP,Tonbridge & Malling Borough Council,4/19/2023,0012008702/3,12008702, 10.12,KCS - KCC,00054200,,Copy Charges,Multi Function Devices,D22GB000040125,
http://statistics.data.gov.uk/id/local-authority/29UP,Tonbridge & Malling Borough Council,4/19/2023,0012008702/4,12008702, 218.53,KCS - KCC,00054200,,Leasing Charges,Multi Function Devices,D22GB000044038,
http://statistics.data.gov.uk/id/local-authority/29UP,Tonbridge & Malling Borough Council,4/19/2023,0012008703/3,12008703, 14.24,KCS - KCC,00054200,,Copy Charges,Multi Function Devices,D22GB000040125,
http://statistics.data.gov.uk/id/local-authority/29UP,Tonbridge & Malling Borough Council,4/19/2023,0012008703/4,12008703, 218.53,KCS - KCC,00054200,,Leasing Charges,Multi Function Devices,D22GB000044038,
http://statistics.data.gov.uk/id/local-authority/29UP,Tonbridge & Malling Borough Council,4/19/2023,0012008704/3,12008704, 6.13,KCS - KCC,00054200,,Copy Charges,Multi Function Devices,D22GB000040125,
http://statistics.data.gov.uk/id/local-authority/29UP,Tonbridge & Malling Borough Council,4/19/2023,0012008704/4,12008704, 218.53,KCS - KCC,00054200,,Leasing Charges,Multi Function Devices,D22GB000044038,
http://statistics.data.gov.uk/id/local-authority/29UP,Tonbridge & Malling Borough Council,4/19/2023,0012008705/3,12008705, 3.45,KCS - KCC,00054200,,Copy Charges,Multi Function Devices,D22GB000040125,
http://statistics.data.gov.uk/id/local-authority/29UP,Tonbridge & Malling Borough Council,4/19/2023,0012008705/4,12008705, 218.53,KCS - KCC,00054200,,Leasing Charges,Multi Function Devices,D22GB000044038,
http://statistics.data.gov.uk/id/local-authority/29UP,Tonbridge & Malling Borough Council,4/19/2023,0021038517/1,21038517, 16.20,Upper Medway Internal Drainage Board,00109100,,Maintenance of Grounds,Countryside/Woodland Mgt,B22LG000020402,
http://statistics.data.gov.uk/id/local-authority/29UP,Tonbridge & Malling Borough Council,4/19/2023,0021038518/1,21038518, 15238.36,Tonbridge & Malling Leisure Trust,01469100,,Payment re Prev Yrs Cred Acc,Sundry Creditors SSLTS,J80TL000001101,
http://statistics.data.gov.uk/id/local-authority/29UP,Tonbridge & Malling Borough Council,4/19/2023,0021038519/1,21038519, 2500.00,Platt Parish Council,00078600,,Maintenance of Grounds,Countryside/Woodland Mgt,B22LG000020402,
http://statistics.data.gov.uk/id/local-authority/29UP,Tonbridge & Malling Borough Council,4/19/2023,0021038520/1,21038520, 2625.01,Sloane & Sons Stylish Chairs,01895400,,Initial Furniture & Equipment,Capital Renewals Leisure,P05KGBC0309906,210057178
http://statistics.data.gov.uk/id/local-authority/29UP,Tonbridge & Malling Borough Council,4/19/2023,0021038521/1,21038521, 8.40,B&Q/Screwfix Direct(TradeUKAccount),00141300,,Purchases,Open Spaces & Amenity Areas,B22LE000040101,
http://statistics.data.gov.uk/id/local-authority/29UP,Tonbridge & Malling Borough Council,4/19/2023,0021038522/1,21038522, 17.79,B&Q/Screwfix Direct(TradeUKAccount),00141300,,Purchases,Open Spaces & Amenity Areas,B22LE000040101,
http://statistics.data.gov.uk/id/local-authority/29UP,Tonbridge & Malling Borough Council,4/19/2023,0021038524/1,21038524, 759.17,F R Jones and Son,01895500,,Initial Furniture & Equipment,Capital Renewals Leisure,P05KGBC0309906,210057181
http://statistics.data.gov.uk/id/local-authority/29UP,Tonbridge & Malling Borough Council,4/19/2023,0021038525/1,21038525, 1055.83,REDACTED PERSONAL DATA,01895500,,Initial Furniture & Equipment,Capital Renewals Leisure,P05KGBC0309906,210057180
http://statistics.data.gov.uk/id/local-authority/29UP,Tonbridge & Malling Borough Council,4/19/2023,0021038526/1,21038526, 350.00,SWS Countryside & Landscape,01567200,,Health & Safety - Trees,Countryside/Woodland Mgt,B22LG000044045,210057191
http://statistics.data.gov.uk/id/local-authority/29UP,Tonbridge & Malling Borough Council,4/19/2023,0021038527/1,21038527, 250.00,SWS Countryside & Landscape,01567200,,Health & Safety - Trees,Countryside/Woodland Mgt,B22LG000044045,210057191
http://statistics.data.gov.uk/id/local-authority/29UP,Tonbridge & Malling Borough Council,4/19/2023,0021038527/2,21038527, 350.00,SWS Countryside & Landscape,01567200,,Health & Safety - Trees,Countryside/Woodland Mgt,B22LG000044045,210057191
http://statistics.data.gov.uk/id/local-authority/29UP,Tonbridge & Malling Borough Council,4/19/2023,0021038528/3,21038528, 52000.00,SWS Countryside & Landscape,01567200,,Payment re Prev Yrs Cred Acc,Sundry Creditors SSLTS,J80TL000001101,
http://statistics.data.gov.uk/id/local-authority/29UP,Tonbridge & Malling Borough Council,4/19/2023,0021038529/1,21038529, 262.40,Kompan Ltd,01741600,382219257,Maintenance of Play Equipment,Open Spaces & Amenity Areas,B22LE000020503,210057158
http://statistics.data.gov.uk/id/local-authority/29UP,Tonbridge & Malling Borough Council,4/19/2023,0021038530/1,21038530, 1170.00,Green Leaf Tree & Landscapes Limited,01860500,,Health & Safety - Trees,Countryside/Woodland Mgt,B22LG000044045,210057173
http://statistics.data.gov.uk/id/local-authority/29UP,Tonbridge & Malling Borough Council,4/19/2023,0021038532/1,21038532, 614.00,Theatrix Arts,01712400,,Events Support,Events Development,B41TJ000044041,
http://statistics.data.gov.uk/id/local-authority/29UP,Tonbridge & Malling Borough Council,4/19/2023,0022027670/3,22027670, 1068.20,Lucy and Martin Recycling LTD,01694200,,Payment re Prev Yrs Cred Acc,Sundry Creditors SSLTS,J80TL000001101,
http://statistics.data.gov.uk/id/local-authority/29UP,Tonbridge & Malling Borough Council,4/19/2023,0022027671/3,22027671, 65.88,Peoplesafe -  Skyguard Ltd,01779900,,Health General,Env Hlth & Hsg Sals&Overheads,D01AVDV0744049,
http://statistics.data.gov.uk/id/local-authority/29UP,Tonbridge & Malling Borough Council,4/19/2023,0022027672/3,22027672, 490.00,Countrystyle Group,00835900,781981681,Collection of Card,Dry Recycling,H34SR000054008,
http://statistics.data.gov.uk/id/local-authority/29UP,Tonbridge & Malling Borough Council,4/19/2023,0022027673/1,22027673, 341.21,Scottish Water Business Stream Ltd,01641100,,Sewerage Charges,Public Conveniences,H22SCH01224003,
http://statistics.data.gov.uk/id/local-authority/29UP,Tonbridge & Malling Borough Council,4/19/2023,0022027674/1,22027674, 574.00,BML Building Services Ltd,01505000,,Repairs & Mtce to Buildings,Homelessness,C01AATNHS20101,220003329
http://statistics.data.gov.uk/id/local-authority/29UP,Tonbridge & Malling Borough Council,4/19/2023,0022027675/3,22027675, 250.00,BML Building Services Ltd,01505000,,Purchases,Street Scene,H23SD000040101,
http://statistics.data.gov.uk/id/local-authority/29UP,Tonbridge & Malling Borough Council,4/19/2023,0022027676/3,22027676, 63.27,Biffa Waste Services Ltd,01284500,,Trade Refuse Charges,Cleaning & Security,D21FD000044008,
http://statistics.data.gov.uk/id/local-authority/29UP,Tonbridge & Malling Borough Council,4/19/2023,0022027677/1,22027677, 2910.00,Town & Country Housing Group,01385400,,Other Expenses,Housing Assistance,P03AD000009908,
http://statistics.data.gov.uk/id/local-authority/29UP,Tonbridge & Malling Borough Council,4/19/2023,0022027678/1,22027678, 594.00,Town & Country Housing Group,01385400,,Other Expenses,Housing Assistance,P03AD000009908,
http://statistics.data.gov.uk/id/local-authority/29UP,Tonbridge & Malling Borough Council,4/19/2023,0022027679/1,22027679, 666.72,Town & Country Housing Group,01385400,,Other Expenses,Disabled Facilities Grant Mand,P03AC000009908,
http://statistics.data.gov.uk/id/local-authority/29UP,Tonbridge & Malling Borough Council,4/19/2023,0022027680/1,22027680, 5230.00,Ascendit Lifts Ltd,00446600,,Other Expenses,Disabled Facilities Grant Mand,P03AC000009908,
http://statistics.data.gov.uk/id/local-authority/29UP,Tonbridge & Malling Borough Council,4/19/2023,0022027681/1,22027681, 7981.00,Sense Sensory,01896500,269495837,Other Expenses,Disabled Facilities Grant Mand,P03AC000009908,
http://statistics.data.gov.uk/id/local-authority/29UP,Tonbridge & Malling Borough Council,4/19/2023,0022027682/1,22027682, 730.44,Town & Country Housing Group,01385400,,Other Expenses,Disabled Facilities Grant Mand,P03AC000009908,
http://statistics.data.gov.uk/id/local-authority/29UP,Tonbridge & Malling Borough Council,4/19/2023,0022027683/1,22027683, 4896.65,Adaptec Mobilty Ltd,01785800,339578354,Other Expenses,Disabled Facilities Grant Mand,P03AC000009908,
http://statistics.data.gov.uk/id/local-authority/29UP,Tonbridge & Malling Borough Council,4/19/2023,0022027684/1,22027684, 781.49,Town & Country Housing Group,01385400,,Other Expenses,Disabled Facilities Grant Mand,P03AC000009908,
http://statistics.data.gov.uk/id/local-authority/29UP,Tonbridge & Malling Borough Council,4/19/2023,0022027685/1,22027685, 1445.98,Acorn Maintenance Services,01036000,,Other Expenses,Disabled Facilities Grant Mand,P03AC000009908,
http://statistics.data.gov.uk/id/local-authority/29UP,Tonbridge & Malling Borough Council,4/19/2023,0022027686/1,22027686, 452.16,Town & Country Housing Group,01385400,,Other Expenses,Disabled Facilities Grant Mand,P03AC000009908,
http://statistics.data.gov.uk/id/local-authority/29UP,Tonbridge & Malling Borough Council,4/19/2023,0022027687/1,22027687, 11.00,REDACTED PERSONAL DATA,01896700,,Funeral Expenses,Public Health Act 1984,H26SG000054002,
http://statistics.data.gov.uk/id/local-authority/29UP,Tonbridge & Malling Borough Council,4/19/2023,0022027687/2,22027687, 11.00,REDACTED PERSONAL DATA,01896700,,Funeral Expenses,Public Health Act 1984,H26SG000054002,
http://statistics.data.gov.uk/id/local-authority/29UP,Tonbridge & Malling Borough Council,4/19/2023,0031019388/3,31019388, 6.08,B&Q/Screwfix Direct(TradeUKAccount),00141300,,Purchases,Boro Highways & Emergency Oper,E01AA000040101,
http://statistics.data.gov.uk/id/local-authority/29UP,Tonbridge & Malling Borough Council,4/19/2023,0031019389/3,31019389, 1082.20,"ROBERTS COUNTRY VEHICLES LTD,",01713700,472683128,Winter Maintenance,Parking Off-Street,E10HA000020701,
http://statistics.data.gov.uk/id/local-authority/29UP,Tonbridge & Malling Borough Council,4/19/2023,0031019389/4,31019389, 45.00,"ROBERTS COUNTRY VEHICLES LTD,",01713700,472683128,Winter Maintenance,Parking Off-Street,E10HA000020701,
http://statistics.data.gov.uk/id/local-authority/29UP,Tonbridge & Malling Borough Council,4/19/2023,0031019395/1,31019395, 1040.50,Lemon Drainage Services LTD,01761600,,Initial Furniture & Equipment,Capital Renewals Leisure,P05KGBC0509906,210057159
http://statistics.data.gov.uk/id/local-authority/29UP,Tonbridge & Malling Borough Council,4/19/2023,0031019396/1,31019396, 3475.00,DSSL Group Ltd,01839500,,CCTV Monitoring Station,Security Services Management,E09GA000051020,310042803
http://statistics.data.gov.uk/id/local-authority/29UP,Tonbridge & Malling Borough Council,4/19/2023,0031019397/3,31019397, 3175.51,CDER Group,01773300,,Adjudication & Enforcement Ser,Parking Off-Street,E10HA000044230,
http://statistics.data.gov.uk/id/local-authority/29UP,Tonbridge & Malling Borough Council,4/19/2023,0031019398/1,31019398, 250.00,PSR Lighting & Signs Ltd,01265400,,BRREP Car Park mntce,Leis Man Poult Wood Golf Centr,M15HEP20001953,310043005
http://statistics.data.gov.uk/id/local-authority/29UP,Tonbridge & Malling Borough Council,4/19/2023,0031019399/3,31019399, 40602.48,BT RedCARE,00732500,245719348,CCTV Monitoring Station,Security Services Management,E09GA000051020,
http://statistics.data.gov.uk/id/local-authority/29UP,Tonbridge & Malling Borough Council,4/19/2023,0031019400/3,31019400, 57.90,Npower Ltd,01675800,,Electricity,Parking Off-Street,E10HA000021002,
http://statistics.data.gov.uk/id/local-authority/29UP,Tonbridge & Malling Borough Council,4/19/2023,0031019401/3,31019401, 110.55,Npower Ltd,01675800,,Electricity,Parking Off-Street,E10HA000021002,
http://statistics.data.gov.uk/id/local-authority/29UP,Tonbridge & Malling Borough Council,4/19/2023,0031019402/3,31019402, 262.65,Npower Ltd,01675800,,Electricity,Parking Off-Street,E10HA000021002,
http://statistics.data.gov.uk/id/local-authority/29UP,Tonbridge & Malling Borough Council,4/19/2023,0031019406/1,31019406, 67.00,Ark Trading/Goldstar,01607200,113179830,Uniforms,Parking Off-Street,E10HA000042002,310042982
http://statistics.data.gov.uk/id/local-authority/29UP,Tonbridge & Malling Borough Council,4/19/2023,0032010158/3,32010158, 2080.50,Vivid Resourcing,01773700,,Payment re Prev Yrs Cred Acc,Sundry Creditors PHEHS,J80TB000001101,
http://statistics.data.gov.uk/id/local-authority/29UP,Tonbridge & Malling Borough Council,4/19/2023,0032010160/1,32010160, 2575.55,CBA,01844700,,Development of Local Plan,Development of Local Plan,A01AE000044023,320003411
http://statistics.data.gov.uk/id/local-authority/29UP,Tonbridge & Malling Borough Council,4/19/2023,0032010161/3,32010161, 1673.68,The Oyster Partnership,01196400,,Payment re Prev Yrs Cred Acc,Sundry Creditors PHEHS,J80TB000001101,
http://statistics.data.gov.uk/id/local-authority/29UP,Tonbridge & Malling Borough Council,4/19/2023,0032010162/3,32010162, 1253.50,The Oyster Partnership,01196400,,Payment re Prev Yrs Cred Acc,Sundry Creditors PHEHS,J80TB000001101,
http://statistics.data.gov.uk/id/local-authority/29UP,Tonbridge & Malling Borough Council,4/19/2023,0032010163/3,32010163, 1801.51,The Oyster Partnership,01196400,,Payment re Prev Yrs Cred Acc,Sundry Creditors PHEHS,J80TB000001101,
http://statistics.data.gov.uk/id/local-authority/29UP,Tonbridge & Malling Borough Council,4/19/2023,0032010164/3,32010164, 1468.46,The Oyster Partnership,01196400,,Temporary Staff,Planning Sals&Overheads,D01AJDJ0111300,
http://statistics.data.gov.uk/id/local-authority/29UP,Tonbridge & Malling Borough Council,4/19/2023,0032010165/1,32010165, 203.49,KM Media Group Ltd,00053900,,Advertising General,Development Management,A01ABZ99944216,320003495
http://statistics.data.gov.uk/id/local-authority/29UP,Tonbridge & Malling Borough Council,4/19/2023,0032010166/1,32010166, 171.36,KM Media Group Ltd,00053900,,Advertising General,Development Management,A01ABZ99944216,320003494
http://statistics.data.gov.uk/id/local-authority/29UP,Tonbridge & Malling Borough Council,4/19/2023,0032010167/3,32010167, 207.09,KH Recruitment Ltd,01738900,,Temporary Staff,Planning Sals&Overheads,D01AJDJ0111300,
http://statistics.data.gov.uk/id/local-authority/29UP,Tonbridge & Malling Borough Council,4/19/2023,0032010168/3,32010168, 3480.00,G2 Recruitment Solutions,01786000,,Payment re Prev Yrs Cred Acc,Sundry Creditors PHEHS,J80TB000001101,
http://statistics.data.gov.uk/id/local-authority/29UP,Tonbridge & Malling Borough Council,4/19/2023,0032010169/1,32010169, 3000.00,Design South East Limited,01521100,,Subscriptions,Planning Sals&Overheads,D01AJDJ0147002,320003490
http://statistics.data.gov.uk/id/local-authority/29UP,Tonbridge & Malling Borough Council,4/19/2023,0032010170/3,32010170, 1462.00,Carrington West Limited,01844500,,Temporary Staff,Planning Sals&Overheads,D01AJDJ0111300,
http://statistics.data.gov.uk/id/local-authority/29UP,Tonbridge & Malling Borough Council,4/19/2023,0032010171/3,32010171, 1612.50,Carrington West Limited,01844500,,Payment re Prev Yrs Cred Acc,Sundry Creditors PHEHS,J80TB000001101,
http://statistics.data.gov.uk/id/local-authority/29UP,Tonbridge & Malling Borough Council,4/19/2023,0041035419/1,41035419, 10687.25,Grant Thornton UK LLP,01407400,,Audit Fees,Public Accountability,D29LR000044223,410032259
http://statistics.data.gov.uk/id/local-authority/29UP,Tonbridge & Malling Borough Council,4/19/2023,0041035426/1,41035426, 10.47,KCS - KCC,00054200,,Stationery,Finance Sals&Overheads,D01AF000043003,410032382
http://statistics.data.gov.uk/id/local-authority/29UP,Tonbridge & Malling Borough Council,4/19/2023,0041035426/2,41035426, 6.98,KCS - KCC,00054200,,Stationery,Finance Sals&Overheads,D01AF000043003,410032382
http://statistics.data.gov.uk/id/local-authority/29UP,Tonbridge & Malling Borough Council,4/19/2023,0041035426/3,41035426, 3.95,KCS - KCC,00054200,,Stationery,Finance Sals&Overheads,D01AF000043003,410032382
http://statistics.data.gov.uk/id/local-authority/29UP,Tonbridge & Malling Borough Council,4/19/2023,0041035427/1,41035427, 125.00,Grants Online Ltd,01029600,,Subscriptions,Finance Sals&Overheads,D01AFDF0047002,410032385
http://statistics.data.gov.uk/id/local-authority/29UP,Tonbridge & Malling Borough Council,4/19/2023,0041035429/3,41035429, 642.84,Morgan Hunt UK Ltd,01086900,,Temporary Staff,Finance Sals&Overheads,D01AFDF1111300,
http://statistics.data.gov.uk/id/local-authority/29UP,Tonbridge & Malling Borough Council,4/19/2023,0041035430/3,41035430, 385.95,Maidstone Borough Council,01173700,,Bailiffs Commission,Local Revenue & NNDR Collect,D41QA000044075,
http://statistics.data.gov.uk/id/local-authority/29UP,Tonbridge & Malling Borough Council,4/19/2023,0041035431/3,41035431, 3378.50,Maidstone Borough Council,01173700,,Bailiffs Commission,Local Revenue & NNDR Collect,D41QA000044075,
http://statistics.data.gov.uk/id/local-authority/29UP,Tonbridge & Malling Borough Council,4/19/2023,0041035432/3,41035432, 2981.26,Rundle & Co Ltd,00087200,,Bailiffs Commission,Local Revenue & NNDR Collect,D41QA000044075,
http://statistics.data.gov.uk/id/local-authority/29UP,Tonbridge & Malling Borough Council,4/19/2023,0041035433/3,41035433, 75.00,Rundle & Co Ltd,00087200,,Bailiffs Commission,Local Revenue & NNDR Collect,D41QA000044075,
http://statistics.data.gov.uk/id/local-authority/29UP,Tonbridge & Malling Borough Council,4/19/2023,0041035436/1,41035436, 15609.53,Kent County Council,00053700,,Payment re Prev Yrs Cred Acc,Sundry Creditors Finance,J80TF000001101,
http://statistics.data.gov.uk/id/local-authority/29UP,Tonbridge & Malling Borough Council,4/19/2023,0041035439/1,41035439, 153.00,Airey Consultancy Services Ltd,01760800,,Purchases,Local Revenue & NNDR Collect,D41QA000040101,
http://statistics.data.gov.uk/id/local-authority/29UP,Tonbridge & Malling Borough Council,4/19/2023,0041035440/1,41035440, 17.50,Tameside Metropolitan Borough,00770200,,Other Expenses,Finance Sals&Overheads,D01AFDF0648010,
http://statistics.data.gov.uk/id/local-authority/29UP,Tonbridge & Malling Borough Council,4/19/2023,0041035440/2,41035440, 7.00,Tameside Metropolitan Borough,00770200,,Other Expenses,Finance Sals&Overheads,D01AFDF0648010,
http://statistics.data.gov.uk/id/local-authority/29UP,Tonbridge & Malling Borough Council,4/19/2023,0041035440/3,41035440, 2.80,Tameside Metropolitan Borough,00770200,,Other Expenses,Finance Sals&Overheads,D01AFDF0648010,
http://statistics.data.gov.uk/id/local-authority/29UP,Tonbridge & Malling Borough Council,4/19/2023,0041035441/1,41035441, 1100.00,NEC Software Solutions UK Ltd,01073900,202159745,Other Expenses,Housing Benefits,C05CL000048010,410032373
http://statistics.data.gov.uk/id/local-authority/29UP,Tonbridge & Malling Borough Council,4/19/2023,0041035442/1,41035442, 3900.00,Kent County Council,00322500,,Tracing Services,Local Revenue & NNDR Collect,D41QA000044091,410032384
http://statistics.data.gov.uk/id/local-authority/29UP,Tonbridge & Malling Borough Council,4/19/2023,0051008803/3,51008803, 2945.80,Health Assured Ltd,01427900,,Employee Support Scheme,Health Care,D10DB000013314,
http://statistics.data.gov.uk/id/local-authority/29UP,Tonbridge & Malling Borough Council,4/21/2023,0041035447/1,41035447, 2586.00,H.M. Revenue & Customs,00048400,,Levy Payment,Apprenticeship Scheme,D10DE000013700,
http://statistics.data.gov.uk/id/local-authority/29UP,Tonbridge & Malling Borough Council,4/21/2023,0041035448/1,41035448, 15.00,WorldPay ,01568000,,Credit Card Commission,Banking Arrangements,D43QK000044082,
http://statistics.data.gov.uk/id/local-authority/29UP,Tonbridge & Malling Borough Council,4/21/2023,0041035449/1,41035449, 164.92,WorldPay ,01568000,,Credit Card Commission,Banking Arrangements,D43QK000044082,
http://statistics.data.gov.uk/id/local-authority/29UP,Tonbridge & Malling Borough Council,4/21/2023,0041035450/1,41035450, 767.66,WorldPay ,01568000,,Credit Card Commission,Banking Arrangements,D43QK000044082,
http://statistics.data.gov.uk/id/local-authority/29UP,Tonbridge & Malling Borough Council,4/21/2023,0041035451/1,41035451, 3738.88,WorldPay ,01568000,,Credit Card Commission,Banking Arrangements,D43QK000044082,
http://statistics.data.gov.uk/id/local-authority/29UP,Tonbridge & Malling Borough Council,4/21/2023,0041035451/2,41035451, 427.79,WorldPay ,01568000,,Credit Card Commission,Banking Arrangements,D43QK000044082,
http://statistics.data.gov.uk/id/local-authority/29UP,Tonbridge & Malling Borough Council,4/24/2023,0041035458/1,41035458, 186.70,National Westminster Bank Plc,00069400,,Bank Charges,Banking Arrangements,D43QK000044222,
http://statistics.data.gov.uk/id/local-authority/29UP,Tonbridge & Malling Borough Council,4/25/2023,0041035467/1,41035467, 68.00,National Westminster Bank Plc,00069400,,Bank Charges,Banking Arrangements,D43QK000044222,
http://statistics.data.gov.uk/id/local-authority/29UP,Tonbridge & Malling Borough Council,4/26/2023,0011046001/1,11046001, 12000.00,KCS - KCC,00054200,,Payment re Prev Yrs Cred Acc,Sundry Creditors Admin & Prop,J80TA000001101,
http://statistics.data.gov.uk/id/local-authority/29UP,Tonbridge & Malling Borough Council,4/26/2023,0011046001/2,11046001, 2373.50,KCS - KCC,00054200,,Payment re Prev Yrs Cred Acc,Sundry Creditors Admin & Prop,J80TA000001101,
http://statistics.data.gov.uk/id/local-authority/29UP,Tonbridge & Malling Borough Council,4/26/2023,0011046001/3,11046001, 2373.50,KCS - KCC,00054200,,Payment re Prev Yrs Cred Acc,Sundry Creditors Admin & Prop,J80TA000001101,
http://statistics.data.gov.uk/id/local-authority/29UP,Tonbridge & Malling Borough Council,4/26/2023,0011046002/1,11046002, 1217.80,Sellick Partnership Group Limited,01336800,,Temporary Staff,Legal Sals&Overheads,D01ARDR0011300,
http://statistics.data.gov.uk/id/local-authority/29UP,Tonbridge & Malling Borough Council,4/26/2023,0011046005/1,11046005, 4.95,Royal Mail,00086200,,Postages - Business Reply,Electoral Registration,D31MF000045003,
http://statistics.data.gov.uk/id/local-authority/29UP,Tonbridge & Malling Borough Council,4/26/2023,0011046005/2,11046005, 13.14,Royal Mail,00086200,,Postages - Business Reply,Electoral Registration,D31MF000045003,
http://statistics.data.gov.uk/id/local-authority/29UP,Tonbridge & Malling Borough Council,4/26/2023,0011046006/1,11046006, 469.94,KH Recruitment Ltd,01738900,,Temporary Staff,Personnel Sals&Overheads,D01ABDB0311300,
http://statistics.data.gov.uk/id/local-authority/29UP,Tonbridge & Malling Borough Council,4/26/2023,0011046007/1,11046007, 416.85,TwoFold Limited,00518000,,Maintenance - General,Electoral Registration,D31MF000040135,
http://statistics.data.gov.uk/id/local-authority/29UP,Tonbridge & Malling Borough Council,4/26/2023,0011046008/1,11046008, 397.42,LexisNexis UK,00016100,,Reference Books & Publications,Technical Sals&Overheads,D01AE000043010,
http://statistics.data.gov.uk/id/local-authority/29UP,Tonbridge & Malling Borough Council,4/26/2023,0011046008/2,11046008, 414.57,LexisNexis UK,00016100,,Reference Books & Publications,Technical Sals&Overheads,D01AE000043010,
http://statistics.data.gov.uk/id/local-authority/29UP,Tonbridge & Malling Borough Council,4/26/2023,0011046009/1,11046009, 1217.80,Sellick Partnership Group Limited,01336800,,Temporary Staff,Legal Sals&Overheads,D01ARDR0011300,
http://statistics.data.gov.uk/id/local-authority/29UP,Tonbridge & Malling Borough Council,4/26/2023,0011046010/1,11046010, 646.00,Disclosure & Barring Service,00865900,,Professional Fees,Licences - Fee Paying,H27SH000044001,
http://statistics.data.gov.uk/id/local-authority/29UP,Tonbridge & Malling Borough Council,4/26/2023,0011046011/2,11046011, 42.00,Thomson Snell & Passmore,00101700,,Legal Fees,Legal Sals&Overheads,D01ARDR0044002,
http://statistics.data.gov.uk/id/local-authority/29UP,Tonbridge & Malling Borough Council,4/26/2023,0011046012/3,11046012, 9.35,REDACTED PERSONAL DATA,01897100,,Meeting Expenses,Committee Administration,D29LL000048020,
http://statistics.data.gov.uk/id/local-authority/29UP,Tonbridge & Malling Borough Council,4/26/2023,0011046012/4,11046012, 7.25,REDACTED PERSONAL DATA,01897100,,Meeting Expenses,Committee Administration,D29LL000048020,
http://statistics.data.gov.uk/id/local-authority/29UP,Tonbridge & Malling Borough Council,4/26/2023,0011046013/1,11046013, 850.00,Thomson Snell & Passmore,00101700,,Legal Fees,Legal Sals&Overheads,D01ARDR0044002,
http://statistics.data.gov.uk/id/local-authority/29UP,Tonbridge & Malling Borough Council,4/26/2023,0011046014/1,11046014, 120.00,G C Industrial Heating Services,00578100,,BRREP Response - General,Pleasure Grounds & Open Spaces,M15HHP50001997,
http://statistics.data.gov.uk/id/local-authority/29UP,Tonbridge & Malling Borough Council,4/26/2023,0011046015/1,11046015, 648.00,Premier Paper Group,01421800,,Purchases - Paper,Printing,D22GA000040102,
http://statistics.data.gov.uk/id/local-authority/29UP,Tonbridge & Malling Borough Council,4/26/2023,0011046016/3,11046016, 586.08,KCS - KCC,00054200,,Payment re Prev Yrs Cred Acc,Sundry Creditors Admin & Prop,J80TA000001101,
http://statistics.data.gov.uk/id/local-authority/29UP,Tonbridge & Malling Borough Council,4/26/2023,0011046017/3,11046017, 48.71,Atlas Facilities Managment Limited ,01075900,,Miscellaneous Services,Cleaning & Security,D21FDDD1044015,
http://statistics.data.gov.uk/id/local-authority/29UP,Tonbridge & Malling Borough Council,4/26/2023,0011046018/3,11046018, 215.52,Initial Washroom Hygiene,00048300,,Laundry - Roller Towels,Cleaning & Security,D21FD000042003,
http://statistics.data.gov.uk/id/local-authority/29UP,Tonbridge & Malling Borough Council,4/26/2023,0011046019/1,11046019, 184.33,Scottish Water Business Stream Ltd,01641100,,Estate Management Charge,Land Review,D40PS000020400,
http://statistics.data.gov.uk/id/local-authority/29UP,Tonbridge & Malling Borough Council,4/26/2023,0011046021/3,11046021, 50.00,Monitor Pest Control Ltd,01476700,,BRREP Rodent Control,Tonbridge Castle / CAB,M15KFP20001949,
http://statistics.data.gov.uk/id/local-authority/29UP,Tonbridge & Malling Borough Council,4/26/2023,0011046022/3,11046022, 3151.42,Royal Mail,00086200,,Purchases,Mailsort Stock Account,K37BR000001002,
http://statistics.data.gov.uk/id/local-authority/29UP,Tonbridge & Malling Borough Council,4/26/2023,0011046022/4,11046022, 4.20,Royal Mail,00086200,,Purchases,Mailsort Stock Account,K37BR000001002,
http://statistics.data.gov.uk/id/local-authority/29UP,Tonbridge & Malling Borough Council,4/26/2023,0011046023/3,11046023, 65.10,Royal Mail,00086200,,Postages - Business Reply,Electoral Registration,D31MF000045003,
http://statistics.data.gov.uk/id/local-authority/29UP,Tonbridge & Malling Borough Council,4/26/2023,0011046023/4,11046023, 16.82,Royal Mail,00086200,,Purchases,Business Reply Stock Account,K14AT000001002,
http://statistics.data.gov.uk/id/local-authority/29UP,Tonbridge & Malling Borough Council,4/26/2023,0011046026/3,11046026, 260.00,G C Industrial Heating Services,00578100,,BRREP Servicing - boilers,Tonbridge Farm Pavillion,M15HGP20001929,
http://statistics.data.gov.uk/id/local-authority/29UP,Tonbridge & Malling Borough Council,4/26/2023,0011046027/3,11046027, 526.36,KCS - KCC,00054200,,Gas,Buildings,D21FEDD6021003,
http://statistics.data.gov.uk/id/local-authority/29UP,Tonbridge & Malling Borough Council,4/26/2023,0011046027/4,11046027, 2100.00,KCS - KCC,00054200,,Payment re Prev Yrs Cred Acc,Sundry Creditors Admin & Prop,J80TA000001101,
http://statistics.data.gov.uk/id/local-authority/29UP,Tonbridge & Malling Borough Council,4/26/2023,0011046028/3,11046028, 4317.98,KCS - KCC,00054200,,Gas,Buildings,D21FEDD1021003,
http://statistics.data.gov.uk/id/local-authority/29UP,Tonbridge & Malling Borough Council,4/26/2023,0011046028/4,11046028, 4300.00,KCS - KCC,00054200,,Payment re Prev Yrs Cred Acc,Sundry Creditors Admin & Prop,J80TA000001101,
http://statistics.data.gov.uk/id/local-authority/29UP,Tonbridge & Malling Borough Council,4/26/2023,0011046029/3,11046029, 100.00,BML Building Services Ltd,01505000,,BRREP Driving Range Repairs,Leis Man Poult Wood Golf Centr,M15HEP20001903,
http://statistics.data.gov.uk/id/local-authority/29UP,Tonbridge & Malling Borough Council,4/26/2023,0011046030/3,11046030, 1049.88,The Oyster Partnership,01196400,,Temporary Staff,Admin & Prop Sals&Overheads,D01AADA1111300,
http://statistics.data.gov.uk/id/local-authority/29UP,Tonbridge & Malling Borough Council,4/26/2023,0011046031/3,11046031, 950.00,Bishop Whitehead,01871300,,Professional Fees,Land Review,D40PS000044001,
http://statistics.data.gov.uk/id/local-authority/29UP,Tonbridge & Malling Borough Council,4/26/2023,0011046032/1,11046032, 995.00,We Design Maps,01886700,799733748,Marketing,Information & Publicity,D32MJ000044215,110070167
http://statistics.data.gov.uk/id/local-authority/29UP,Tonbridge & Malling Borough Council,4/26/2023,0011046033/1,11046033, 1307.84,Dalesauna Ltd,00026800,,BRREP Plant renewals,Larkfield Leisure Centre,M15HDP20001909,110069938
http://statistics.data.gov.uk/id/local-authority/29UP,Tonbridge & Malling Borough Council,4/26/2023,0011046035/1,11046035, 150.00,Seashell Communications,01825200,,Information & Publicity,Information & Publicity,D32MJ000044076,110070068
http://statistics.data.gov.uk/id/local-authority/29UP,Tonbridge & Malling Borough Council,4/26/2023,0011046036/1,11046036, 13.96,KCS - KCC,00054200,,Stationery,Admin & Prop Sals&Overheads,D01AA000043003,110070110
http://statistics.data.gov.uk/id/local-authority/29UP,Tonbridge & Malling Borough Council,4/26/2023,0011046036/2,11046036, 41.30,KCS - KCC,00054200,,Stationery,Electoral Registration,D31MF000043003,110070110
http://statistics.data.gov.uk/id/local-authority/29UP,Tonbridge & Malling Borough Council,4/26/2023,0011046036/3,11046036, 38.97,KCS - KCC,00054200,,Stationery,Electoral Registration,D31MF000043003,110070110
http://statistics.data.gov.uk/id/local-authority/29UP,Tonbridge & Malling Borough Council,4/26/2023,0011046037/1,11046037, 140.00,G C Industrial Heating Services,00578100,,BRREP Servicing - boilers,Gibson Building East,M15KGP20001929,110070178
http://statistics.data.gov.uk/id/local-authority/29UP,Tonbridge & Malling Borough Council,4/26/2023,0011046038/1,11046038, 1865.25,The Morton Partnership,01896600,,BRREP General Maintenance,Tonbridge Castle Gatehouse,M15HKP10001900,110070181
http://statistics.data.gov.uk/id/local-authority/29UP,Tonbridge & Malling Borough Council,4/26/2023,0011046039/1,11046039, 485.00,G C Industrial Heating Services,00578100,,BRREP Response - General,Gibson Building West,M15KBP50001997,110070183
http://statistics.data.gov.uk/id/local-authority/29UP,Tonbridge & Malling Borough Council,4/26/2023,0011046040/1,11046040, 3750.00,MEPS Consulting Ltd,01868800,,Repairs & Mtce to Buildings,Homelessness,C01AA000020101,110069952
http://statistics.data.gov.uk/id/local-authority/29UP,Tonbridge & Malling Borough Council,4/26/2023,0011046041/1,11046041, 882.00,BML Building Services Ltd,01505000,,BRREP Fence/Compound Repairs,Larkfield Leisure Centre,M15HDP20001945,110070117
http://statistics.data.gov.uk/id/local-authority/29UP,Tonbridge & Malling Borough Council,4/26/2023,0011046042/1,11046042, 1089.00,Learnd UK,01226700,,BRREP BMS System Mntce/Upgrade,Tonbridge Swimming Pool,M15HBP20001912,110069930
http://statistics.data.gov.uk/id/local-authority/29UP,Tonbridge & Malling Borough Council,4/26/2023,0011046043/3,11046043, 125.00,Francis Taylor Building,01688700,,Other Planning Enq - Legal Cos,Legal Sals&Overheads,D01ARDR0044146,
http://statistics.data.gov.uk/id/local-authority/29UP,Tonbridge & Malling Borough Council,4/26/2023,0011046044/3,11046044, 548.68,KCS - KCC,00054200,,Electricity,Buildings,D21FEDD6021002,
http://statistics.data.gov.uk/id/local-authority/29UP,Tonbridge & Malling Borough Council,4/26/2023,0011046044/4,11046044, 4000.00,KCS - KCC,00054200,,Payment re Prev Yrs Cred Acc,Sundry Creditors Admin & Prop,J80TA000001101,
http://statistics.data.gov.uk/id/local-authority/29UP,Tonbridge & Malling Borough Council,4/26/2023,0011046045/3,11046045, 69.78,KCS - KCC,00054200,,Electricity,Buildings,D21FEDD1021002,
http://statistics.data.gov.uk/id/local-authority/29UP,Tonbridge & Malling Borough Council,4/26/2023,0011046045/4,11046045, 7500.00,KCS - KCC,00054200,,Payment re Prev Yrs Cred Acc,Sundry Creditors Admin & Prop,J80TA000001101,
http://statistics.data.gov.uk/id/local-authority/29UP,Tonbridge & Malling Borough Council,4/26/2023,0011046046/3,11046046, 644.57,KCS - KCC,00054200,,Electricity,Buildings,D21FEDD5021002,
http://statistics.data.gov.uk/id/local-authority/29UP,Tonbridge & Malling Borough Council,4/26/2023,0011046046/4,11046046, 6000.00,KCS - KCC,00054200,,Payment re Prev Yrs Cred Acc,Sundry Creditors Admin & Prop,J80TA000001101,
http://statistics.data.gov.uk/id/local-authority/29UP,Tonbridge & Malling Borough Council,4/26/2023,0011046048/1,11046048, 250.00,BML Building Services Ltd,01505000,,BRREP Window/door repairs,Tonbridge Cemetery,M15HJP20001919,110070191
http://statistics.data.gov.uk/id/local-authority/29UP,Tonbridge & Malling Borough Council,4/26/2023,0011046049/1,11046049, 650.00,BML Building Services Ltd,01505000,,BRREP Response - General,Angel Centre,M15HAP50001997,110070190
http://statistics.data.gov.uk/id/local-authority/29UP,Tonbridge & Malling Borough Council,4/26/2023,0011046050/1,11046050, 1290.00,G C Industrial Heating Services,00578100,,BRREP Plant renewals,Larkfield Leisure Centre,M15HDP20001909,110070193
http://statistics.data.gov.uk/id/local-authority/29UP,Tonbridge & Malling Borough Council,4/26/2023,0011046051/1,11046051, 170.00,East Sussex Fire Ltd,01843100,,Repairs & Mtce to Buildings,Homelessness,C01AATNHS20101,110070194
http://statistics.data.gov.uk/id/local-authority/29UP,Tonbridge & Malling Borough Council,4/26/2023,0012008706/1,12008706, 495.00,Matobo Ltd,01892800,,Software Hire & Support,Information Technology,D27KD000044059,410032372
http://statistics.data.gov.uk/id/local-authority/29UP,Tonbridge & Malling Borough Council,4/26/2023,0012008706/2,12008706, 754.00,Matobo Ltd,01892800,,Software Hire & Support,Information Technology,D27KD000044059,410032372
http://statistics.data.gov.uk/id/local-authority/29UP,Tonbridge & Malling Borough Council,4/26/2023,0012008706/3,12008706, 825.00,Matobo Ltd,01892800,,Software Hire & Support,Information Technology,D27KD000044059,410032372
http://statistics.data.gov.uk/id/local-authority/29UP,Tonbridge & Malling Borough Council,4/26/2023,0012008707/1,12008707, 8780.00,One Source IT Ltd,01844600,,Maintenance - Ancillary Equip,Information Technology,D27KD000040137,410032391
http://statistics.data.gov.uk/id/local-authority/29UP,Tonbridge & Malling Borough Council,4/26/2023,0012008708/1,12008708, 3000.00,Phoenix Software Ltd,00077400,755349015,Consultancy Fees,Information Technology,D27KD000044011,110070121
http://statistics.data.gov.uk/id/local-authority/29UP,Tonbridge & Malling Borough Council,4/26/2023,0012008709/1,12008709, 4896.00,Linkedin,01716000,,Subscriptions,Information Technology,D27KD000047002,410032377
http://statistics.data.gov.uk/id/local-authority/29UP,Tonbridge & Malling Borough Council,4/26/2023,0012008710/1,12008710, 19152.90,Phoenix Software Ltd,00077400,755349015,Software Hire & Support,Information Technology,D27KD000044059,
http://statistics.data.gov.uk/id/local-authority/29UP,Tonbridge & Malling Borough Council,4/26/2023,0012008711/1,12008711, 10.96,Phoenix Software Ltd,00077400,755349015,Software Hire & Support,Information Technology,D27KD000044059,410032395
http://statistics.data.gov.uk/id/local-authority/29UP,Tonbridge & Malling Borough Council,4/26/2023,0012008712/1,12008712, 10.99,CCS Media Ltd,00018000,,Purchases,Information Technology,D27KD000040101,410032396
http://statistics.data.gov.uk/id/local-authority/29UP,Tonbridge & Malling Borough Council,4/26/2023,0012008712/2,12008712, 5.00,CCS Media Ltd,00018000,,Delivery Expenses,Information Technology,D27KD000044069,410032396
http://statistics.data.gov.uk/id/local-authority/29UP,Tonbridge & Malling Borough Council,4/26/2023,0012008713/1,12008713, 9.99,CCS Media Ltd,00018000,,Purchases,Information Technology,D27KD000040101,410032398
http://statistics.data.gov.uk/id/local-authority/29UP,Tonbridge & Malling Borough Council,4/26/2023,0012008713/2,12008713, 11.99,CCS Media Ltd,00018000,,Purchases,Information Technology,D27KD000040101,410032398
http://statistics.data.gov.uk/id/local-authority/29UP,Tonbridge & Malling Borough Council,4/26/2023,0012008714/1,12008714, 2.59,CCS Media Ltd,00018000,,Purchases,Information Technology,D27KD000040101,410032398
http://statistics.data.gov.uk/id/local-authority/29UP,Tonbridge & Malling Borough Council,4/26/2023,0012008714/2,12008714, 2.00,CCS Media Ltd,00018000,,Delivery Expenses,Information Technology,D27KD000044069,410032398
http://statistics.data.gov.uk/id/local-authority/29UP,Tonbridge & Malling Borough Council,4/26/2023,0012008715/1,12008715, 79.99,CCS Media Ltd,00018000,,Toner Cartridges,Information Technology,D27KD000043018,410032397
http://statistics.data.gov.uk/id/local-authority/29UP,Tonbridge & Malling Borough Council,4/26/2023,0012008715/2,12008715, 3.70,CCS Media Ltd,00018000,,Delivery Expenses,Information Technology,D27KD000044069,410032397
http://statistics.data.gov.uk/id/local-authority/29UP,Tonbridge & Malling Borough Council,4/26/2023,0012008716/1,12008716, 18.00,Phoenix Software Ltd,00077400,755349015,Software Hire & Support,Information Technology,D27KD000044059,410032399
http://statistics.data.gov.uk/id/local-authority/29UP,Tonbridge & Malling Borough Council,4/26/2023,0021038533/1,21038533, 35.00,Weddle and Co,00714900,,Maintenance of Grounds,Open Spaces & Amenity Areas,B22LE000020402,210057196
http://statistics.data.gov.uk/id/local-authority/29UP,Tonbridge & Malling Borough Council,4/26/2023,0021038534/1,21038534, 495.00,Rob Steele T/A Radii Skatepark Repairs,01683100,,Maintenance of Play Equipment,Open Spaces & Amenity Areas,B22LE000020503,210057174
http://statistics.data.gov.uk/id/local-authority/29UP,Tonbridge & Malling Borough Council,4/26/2023,0021038535/1,21038535, 40.30,KCS Education/CSG Global Education Ltd,01897200,408845925,Purchases,Cemetery,B26MP000040101,210057199
http://statistics.data.gov.uk/id/local-authority/29UP,Tonbridge & Malling Borough Council,4/26/2023,0021038536/1,21038536, 685.66,Atlas Facilities Managment Limited ,01075900,,Gates / Security,Patrolling,B22LF000044017,210057188
http://statistics.data.gov.uk/id/local-authority/29UP,Tonbridge & Malling Borough Council,4/26/2023,0021038537/1,21038537, 5100.00,Tonbridge Allotments & Gardens Assoc,01166500,,Management Fee to T A G A,Allotments,B25MK000054006,210057208
http://statistics.data.gov.uk/id/local-authority/29UP,Tonbridge & Malling Borough Council,4/26/2023,0022027688/1,22027688, 5820.75,YMCA Thames Gateway Group,01887700,,Payment re Prev Yrs Cred Acc,Sundry Creditors PHEHS,J80TB000001101,
http://statistics.data.gov.uk/id/local-authority/29UP,Tonbridge & Malling Borough Council,4/26/2023,0022027689/1,22027689, 41739.07,Urbaser LTD,01718800,,Payment re Prev Yrs Cred Acc,Sundry Creditors SSLTS,J80TL000001101,
http://statistics.data.gov.uk/id/local-authority/29UP,Tonbridge & Malling Borough Council,4/26/2023,0022027690/1,22027690, 43040.37,Urbaser LTD,01718800,,Payment re Prev Yrs Cred Acc,Sundry Creditors SSLTS,J80TL000001101,
http://statistics.data.gov.uk/id/local-authority/29UP,Tonbridge & Malling Borough Council,4/26/2023,0022027691/1,22027691, 58924.60,Urbaser LTD,01718800,,Payment re Prev Yrs Cred Acc,Sundry Creditors SSLTS,J80TL000001101,
http://statistics.data.gov.uk/id/local-authority/29UP,Tonbridge & Malling Borough Council,4/26/2023,0022027692/1,22027692, 1199.50,The Speedy Kitchen,01893600,,Charitable / Voluntary Organis,Grants & Payments to Vol Orgn,D37PACV1947005,220003327
http://statistics.data.gov.uk/id/local-authority/29UP,Tonbridge & Malling Borough Council,4/26/2023,0022027693/1,22027693, 2912.64,YMCA Thames Gateway Group,01887700,,Professional Fees,Homelessness,C01AATNPR44001,
http://statistics.data.gov.uk/id/local-authority/29UP,Tonbridge & Malling Borough Council,4/26/2023,0022027694/1,22027694, 39.15,Maidstone Borough Council,01173700,,Council Tax,Homelessness,C01AAMAUN23002,
http://statistics.data.gov.uk/id/local-authority/29UP,Tonbridge & Malling Borough Council,4/26/2023,0022027695/3,22027695, 665.53,KCC - L.A.S.E.R Commercial Services ,00184300,,Air Quality Monitoring,Environmental Protection,H32SN000054016,
http://statistics.data.gov.uk/id/local-authority/29UP,Tonbridge & Malling Borough Council,4/26/2023,0022027696/1,22027696, 1707.00,Clarkes Funeral Service,00021200,,Funeral Expenses,Public Health Act 1984,H26SG000054002,
http://statistics.data.gov.uk/id/local-authority/29UP,Tonbridge & Malling Borough Council,4/26/2023,0022027697/1,22027697, 1912.00,Clarkes Funeral Service,00021200,,Funeral Expenses,Public Health Act 1984,H26SG000054002,
http://statistics.data.gov.uk/id/local-authority/29UP,Tonbridge & Malling Borough Council,4/26/2023,0022027698/1,22027698, 37.00,Scottish Water Business Stream Ltd,01641100,,Sewerage Charges,Public Conveniences,H22SCH00424003,
http://statistics.data.gov.uk/id/local-authority/29UP,Tonbridge & Malling Borough Council,4/26/2023,0022027699/3,22027699, 56.54,British Telecommunications Plc,00012800,,Purchases,Homelessness,C01AATNPR40101,
http://statistics.data.gov.uk/id/local-authority/29UP,Tonbridge & Malling Borough Council,4/26/2023,0022027700/1,22027700, 3500.00,Ashford Borough Council,00005800,,Support for External Agencies,Housing Strategy,C12FB000047022,220003311
http://statistics.data.gov.uk/id/local-authority/29UP,Tonbridge & Malling Borough Council,4/26/2023,0022027701/1,22027701, 4000.00,Police and Crime Commissioner for Kent,01890100,,Abatement Initiatives,Street Scene,H23SD000044006,220003315
http://statistics.data.gov.uk/id/local-authority/29UP,Tonbridge & Malling Borough Council,4/26/2023,0022027702/3,22027702, 2307.70,KCC - L.A.S.E.R Commercial Services ,00184300,,Electricity,Public Conveniences,H22SCH00921002,
http://statistics.data.gov.uk/id/local-authority/29UP,Tonbridge & Malling Borough Council,4/26/2023,0022027703/3,22027703, 245.00,Countrystyle Group,00835900,781981681,Collection of Card,Dry Recycling,H34SR000054008,
http://statistics.data.gov.uk/id/local-authority/29UP,Tonbridge & Malling Borough Council,4/26/2023,0022027704/1,22027704, 1485.00,ReferAll Ltd,01817700,,Healthy Living Initiatives,Public Health - Healthy Living,H40SYVH0048145,220003337
http://statistics.data.gov.uk/id/local-authority/29UP,Tonbridge & Malling Borough Council,4/26/2023,0022027705/3,22027705, 112.35,British Gas,01148500,,Electricity,Homelessness,C01AAMAUN21002,
http://statistics.data.gov.uk/id/local-authority/29UP,Tonbridge & Malling Borough Council,4/26/2023,0031019407/3,31019407, 4800.00,Roads & Sewers for Planning & Design Ltd,01847900,,Payment re Prev Yrs Cred Acc,Sundry Creditors SSLTS,J80TL000001101,
http://statistics.data.gov.uk/id/local-authority/29UP,Tonbridge & Malling Borough Council,4/26/2023,0031019413/3,31019413, 145.95,Imperial Civil Enforcement Solutions,00057200,,Adjudication & Enforcement Ser,Parking Off-Street,E10HA000044230,
http://statistics.data.gov.uk/id/local-authority/29UP,Tonbridge & Malling Borough Council,4/26/2023,0031019414/1,31019414, 500.00,Traffic Enforcement Centre,00604200,,Adjudication & Enforcement Ser,Parking Off-Street,E10HA000044230,
http://statistics.data.gov.uk/id/local-authority/29UP,Tonbridge & Malling Borough Council,4/26/2023,0031019414/2,31019414, 500.00,Traffic Enforcement Centre,00604200,,Adjudication & Enforcement Ser,Parking On-Street,E10HD000044230,
http://statistics.data.gov.uk/id/local-authority/29UP,Tonbridge & Malling Borough Council,4/26/2023,0031019415/3,31019415, 1545.83,CDER Group,01773300,,Adjudication & Enforcement Ser,Parking Off-Street,E10HA000044230,
http://statistics.data.gov.uk/id/local-authority/29UP,Tonbridge & Malling Borough Council,4/26/2023,0031019416/1,31019416, 1053.60,Patrol,01189800,,Adjudication & Enforcement Ser,Parking Off-Street,E10HA000044230,
http://statistics.data.gov.uk/id/local-authority/29UP,Tonbridge & Malling Borough Council,4/26/2023,0031019417/1,31019417, 304.00,Mood Signs Limited,01595800,,Premises Repairs & Maintenance,Parking Off-Street,E10HAE00620601,310043011
http://statistics.data.gov.uk/id/local-authority/29UP,Tonbridge & Malling Borough Council,4/26/2023,0031019418/1,31019418, 35.98,KelticLimited,01000400,,Uniforms,Parking Off-Street,E10HA000042002,310043001
http://statistics.data.gov.uk/id/local-authority/29UP,Tonbridge & Malling Borough Council,4/26/2023,0031019418/10,31019418, 53.97,KelticLimited,01000400,,Uniforms,Parking On-Street,E10HD000042002,310043001
http://statistics.data.gov.uk/id/local-authority/29UP,Tonbridge & Malling Borough Council,4/26/2023,0031019418/2,31019418, 19.90,KelticLimited,01000400,,Uniforms,Parking Off-Street,E10HA000042002,310043001
http://statistics.data.gov.uk/id/local-authority/29UP,Tonbridge & Malling Borough Council,4/26/2023,0031019418/3,31019418, 3.98,KelticLimited,01000400,,Uniforms,Parking Off-Street,E10HA000042002,310043001
http://statistics.data.gov.uk/id/local-authority/29UP,Tonbridge & Malling Borough Council,4/26/2023,0031019418/4,31019418, 35.95,KelticLimited,01000400,,Uniforms,Parking Off-Street,E10HA000042002,310043001
http://statistics.data.gov.uk/id/local-authority/29UP,Tonbridge & Malling Borough Council,4/26/2023,0031019418/5,31019418, 13.90,KelticLimited,01000400,,Uniforms,Parking Off-Street,E10HA000042002,310043001
http://statistics.data.gov.uk/id/local-authority/29UP,Tonbridge & Malling Borough Council,4/26/2023,0031019418/6,31019418, 71.90,KelticLimited,01000400,,Uniforms,Parking On-Street,E10HD000042002,310043001
http://statistics.data.gov.uk/id/local-authority/29UP,Tonbridge & Malling Borough Council,4/26/2023,0031019418/7,31019418, 20.85,KelticLimited,01000400,,Uniforms,Parking On-Street,E10HD000042002,310043001
http://statistics.data.gov.uk/id/local-authority/29UP,Tonbridge & Malling Borough Council,4/26/2023,0031019418/8,31019418, 5.97,KelticLimited,01000400,,Uniforms,Parking On-Street,E10HD000042002,310043001
http://statistics.data.gov.uk/id/local-authority/29UP,Tonbridge & Malling Borough Council,4/26/2023,0031019418/9,31019418, 29.85,KelticLimited,01000400,,Uniforms,Parking On-Street,E10HD000042002,310043001
http://statistics.data.gov.uk/id/local-authority/29UP,Tonbridge & Malling Borough Council,4/26/2023,0031019419/3,31019419, 321.97,KCC - L.A.S.E.R Commercial Services ,00184300,,Electricity,Parking Off-Street,E10HA000021002,
http://statistics.data.gov.uk/id/local-authority/29UP,Tonbridge & Malling Borough Council,4/26/2023,0031019420/3,31019420, 162.00,Citiguard Security (UK) Ltd,01872100,200436269,Payment re Prev Yrs Cred Acc,Sundry Creditors SSLTS,J80TL000001101,
http://statistics.data.gov.uk/id/local-authority/29UP,Tonbridge & Malling Borough Council,4/26/2023,0031019421/1,31019421, 710.00,Archway Highway Services Ltd,01398000,,Premises Repairs & Maintenance,Parking On-Street,E10HD000020601,310043006
http://statistics.data.gov.uk/id/local-authority/29UP,Tonbridge & Malling Borough Council,4/26/2023,0031019421/2,31019421, 942.50,Archway Highway Services Ltd,01398000,,Premises Repairs & Maintenance,Parking On-Street,E10HD000020601,310043006
http://statistics.data.gov.uk/id/local-authority/29UP,Tonbridge & Malling Borough Council,4/26/2023,0032010173/1,32010173, 1653.00,Vivid Resourcing,01773700,,Temporary Staff,Planning Sals&Overheads,D01AJDJ0111300,
http://statistics.data.gov.uk/id/local-authority/29UP,Tonbridge & Malling Borough Council,4/26/2023,0032010174/1,32010174, 214.20,KM Media Group Ltd,00053900,,Advertising General,Development Management,A01ABZ99944216,320003496
http://statistics.data.gov.uk/id/local-authority/29UP,Tonbridge & Malling Borough Council,4/26/2023,0032010175/1,32010175, 6945.00,Haymarket Media Group Limited,01197800,,Subscriptions,Planning Sals&Overheads,D01AJDJ0247002,320003498
http://statistics.data.gov.uk/id/local-authority/29UP,Tonbridge & Malling Borough Council,4/26/2023,0032010176/3,32010176, 2100.00,G2 Recruitment Solutions,01786000,,Temporary Staff,Planning Sals&Overheads,D01AJDJ0111300,
http://statistics.data.gov.uk/id/local-authority/29UP,Tonbridge & Malling Borough Council,4/26/2023,0032010176/4,32010176, 2590.00,G2 Recruitment Solutions,01786000,,Payment re Prev Yrs Cred Acc,Sundry Creditors PHEHS,J80TB000001101,
http://statistics.data.gov.uk/id/local-authority/29UP,Tonbridge & Malling Borough Council,4/26/2023,0032010178/3,32010178, 342.50,KH Recruitment Ltd,01738900,,Temporary Staff,Planning Sals&Overheads,D01AJDJ0111300,
http://statistics.data.gov.uk/id/local-authority/29UP,Tonbridge & Malling Borough Council,4/26/2023,0032010179/1,32010179, 13862.00,Kent County Council,00322500,,Development of Local Plan,Development of Local Plan,A01AE000044023,320003423
http://statistics.data.gov.uk/id/local-authority/29UP,Tonbridge & Malling Borough Council,4/26/2023,0041035452/1,41035452, 1081.14,Morgan Hunt UK Ltd,01086900,,Temporary Staff,Finance Sals&Overheads,D01AFDF1111300,
http://statistics.data.gov.uk/id/local-authority/29UP,Tonbridge & Malling Borough Council,4/26/2023,0041035453/1,41035453, 74.25,Maidstone Borough Council,01173700,,Bailiffs Commission,Local Revenue & NNDR Collect,D41QA000044075,
http://statistics.data.gov.uk/id/local-authority/29UP,Tonbridge & Malling Borough Council,4/26/2023,0041035454/4,41035454, 1858.04,Maidstone Borough Council,01173700,,Bailiffs Commission,Local Revenue & NNDR Collect,D41QA000044075,
http://statistics.data.gov.uk/id/local-authority/29UP,Tonbridge & Malling Borough Council,4/26/2023,0041035455/4,41035455, 938.42,Rundle & Co Ltd,00087200,,Bailiffs Commission,Local Revenue & NNDR Collect,D41QA000044075,
http://statistics.data.gov.uk/id/local-authority/29UP,Tonbridge & Malling Borough Council,4/26/2023,0041035457/1,41035457, 1750.00,NEC Software Solutions UK Ltd,01073900,202159745,Other Expenses,Housing Benefits,C05CL000048010,410032392
http://statistics.data.gov.uk/id/local-authority/29UP,Tonbridge & Malling Borough Council,4/26/2023,0051008802/1,51008802, 150.00,REDACTED PERSONAL DATA,01895700,,Ext Fees/Prof & Tech,Training,D10DCDR0413561,
http://statistics.data.gov.uk/id/local-authority/29UP,Tonbridge & Malling Borough Council,4/26/2023,0051008805/1,51008805, 359.00,St John Ambulance Supplies,01228000,,Ext Fees/Health & Safety,Training,D10DCDG0113566,510010626
http://statistics.data.gov.uk/id/local-authority/29UP,Tonbridge & Malling Borough Council,4/28/2023,0041035471/1,41035471, 1787.69,REDACTED PERSONAL DATA,01898200,,Other Expenses,Ukrainian Refugee Assistance,D54UA000048010,
http://statistics.data.gov.uk/id/local-authority/29UP,Tonbridge & Malling Borough Council,4/28/2023,0041035472/1,41035472, 1884.00,Waghorn & Company,01390600,,Other Expenses,Ukrainian Refugee Assistance,D54UA000048010,
